{"text_format":"1","workbook":"xlsx","n_sheets":11,"sheets":["ניהול","א. פתיח","ב. תוכן עניינים","ג. שאלון למילוי מגיש הבקשה","   ד. ציוד כללי","ה. טכנולוגיה מסייעת","ו. מתקני חצר לבוגרים  ","ז. חוגים","ח. ציוד נוסף ","ט. סיכום","י. סיכום מפורט (לשימוש משרדי)"],"not_rendered":{"charts":0,"images":2,"macros":1,"external_links":0,"defined_names":2,"comments":0,"pivot_tables":0},"unopened":[],"bounds":{"document_bytes":16777216,"sheet_cells":100000,"rows_first":2000,"rows_last":500,"rows_between":2000,"halvings":0,"cell_chars":16384,"cell_head_chars":4096},"cells_cut":0,"cells_raw":0,"read":"whole","date_system":"1900"}

{"sheet":"ניהול","index":0,"n_rows":17,"n_cols":4,"rows_kept":17,"cut":false,"hidden":true,"merged":[]}
["סוג המסגרת",null,"פעולות נעילה/ פתיחה"]
["נא לבחור מתוך הרשימה",null,"כלים","הסבר"]
["יש\"א גן חנ\"מ גילאי 3-6",1,null,"הכפתור נועל את הנתונים הנבחרים "]
["יש\"א בה\"ס חנ\"מ גילאי 6-21",null,null,"הקובץ  נשלח עם נעילת נתוני התקן ונוסחאות"]
["מועדון חברתי גילאי 21+",2,null,"הכפתור פותח את כל הנתונים"]
[null,null,null,"יש להפעיל אותו לאחר  אישור בקשת הגוף"]
[null,null,null,"לצורך נעילת שלב אישור בקשת הגוף"]
[null,3,null,"יש להפעיל את הכפתור אחרי פעולה מס' 2"]
[null,null,null,"ואחרי זה כפתור מס' 1 "]
[null,4,null,"הכפתור נדרש במקרים מיוחדים"]
[null,null,null,"במידה ויש לעשות תיקונים אחרי שלב האישור"]
[null,null,null,"או לצרכים טכניים"]
[null,null,null,"להפעלתו יש לעשות פעולה מס' 2"]
[null,null,null,"ואחרי תיקון נתוני האישור לבצע פעולות  3 ו- 1"]
[null,5,null,"סינון ציוד מוזמן בסעיף \"סיכום מפורט\" אינו מוגן"]
[null,null,null,"מפני שהסינון לא עובד במצב נעול, לכן יש להיזהר "]
[null,null,null,"מכול פעולה מעבר מהפעלת הסינון באמצאות הכפתורים"]

{"sheet":"א. פתיח","index":1,"n_rows":45,"n_cols":3,"rows_kept":45,"cut":false,"hidden":false,"merged":[[33,1,33,7],[32,1,32,10],[26,1,26,10],[27,1,27,10],[28,1,28,10],[29,1,29,10],[30,1,30,10],[31,1,31,10]]}
[]
[]
[]
[]
[]
[]
[]
[]
[]
[null,"גרסה: 1.1.2023"]
[null,"תקן ציוד במסגרות פנאי ו/או הארכת יום במסגרות חינוך"]
[null," ציוד כללי, טכנולוגיה מסייעת, מתקני חצר וחוגים."]
[]
[null,"רקע כללי"]
[null,"הסיוע ניתן לשיפוץ או ציוד.  תקן זה עוסק בציוד. "]
[null,"מענק מעלה","עד 60,000 ₪, אחת ל 3 שנים מתום תשלום אחרון."]
[null,"מענק צמרת","עד 100,000 ₪ ועד 50%  מהעלות הכוללת, הנמוך מביניהם, אחת ל 5 שנים מתום תשלום."]
[null,"יש להיכנס לאתר קרן שלם, פיתוח פיזי מענקים ולפעול בהתאם להנחיות. מצב קישורים לנוחיותכם."]
[null,"יש להיכנס לאתר קרן שלם, פיתוח פיזי מענקים ולפעול בהתאם להנחיות, מצב קישורים לנוחיותכם.    \n   "]
[null,"מטרת תקן ציוד"]
[null,"לסייע לרשויות או גופים המפעילים מסגרות לבנות את רשימת הציוד בהתאם להיקף ולסוג פעילותם. "]
[null,"התקן מהווה רשימת ציוד מומלצת אשר ניתן לבחור מתוכה את פרטי הציוד הדרושים. "]
[null,"ניתן להשתמש בתקן בצורה מודולרית בהתאם למספר המשתתפים, גודל המקום והתכנים המופעלים בו. "]
[null,"לא נדרש להציג שתי הצעות מחיר למעט בגיליון ציוד נוסף, עבור ציוד שאינו נמצא בתקן."]
[]
[null,"הבהרות"]
[]
[null,"הסיוע בציוד למועדוניות/ הארכת יום יינתן בהתאם למספר המשתתפים. "]
[null,"לתשומת ליבכם, הכמויות של חלק מהציוד נקבעות לפי מספר האנשים במסגרת ( לדוגמא:  מספר הכיסאות והשולחנות)."]
[null,"הכמויות של חלק אחר מהציוד הינן קבועות ואינן תלויות במספר האנשים (  לדוגמא: ציוד מטבח או מתקני חצר)."]
[null,"עבור הריהוט למסגרות ניתן לקבל  ייעוץ מקצועי ע\"י מעצב פנים. ראה סעיף ציוד כללי.  "]
[null,"במידה וקיים צורך בציוד אשר אינו מופיע בתקן, ניתן לבקש בגיליון ח'- ציוד נוסף. "]
[null,"הסכומים המופיעים בטבלאות כוללים מע\"מ בשיעור 17%. "]
[null,"גובה הסיוע כפוף להחלטות ומדיניות הנהלת הקרן המשתנות/מתעדכנות  באתר הקרן."]
[]
[null,"הנחיות למילוי הקובץ:"]
[null,"שלב הגשת הבקשה:"]
[null,"עליכם למלא גיליון ג' בטרם מילוי הגיליונות האחרים"]
[null,"גיליונות ד' עד ח' עליכם למלא רק עמודות הצבועות בירוק"]
[null,"אין לגעת בתאים האחרים- תאים אלו \"נעולים\""]
[]
[null,"שלב הדיווח על ההוצאות:"]
[null,"לאחר אישור הבקשה יוחזר הגיליון עם הפריטים המאושרים "]
[null,"גיליונות ד' עד ח' עליכם למלא רק עמודות הצבועות בכתום "]
[null,"אין לגעת בתאים האחרים- תאים אלו \"נעולים\""]

{"sheet":"ב. תוכן עניינים","index":2,"n_rows":23,"n_cols":3,"rows_kept":23,"cut":false,"hidden":false,"merged":[]}
[]
[]
[]
[]
[]
[]
[]
[null,"תקן ציוד במסגרות פנאי ו/או הארכת יום במסגרות חינוך"]
[null," ציוד כללי, טכנולוגיה מסייעת, מתקני חצר וחוגים"]
[]
[null,"תוכן עניינים"]
[]
[null,"לשונית בקובץ","תוכן הלשונית "]
[null,"א.","פתיח"]
[null,"ב.","תוכן עניינים"]
[null,"ג.","שאלון למילוי מגיש הבקשה "]
[null,"ד.","ציוד כללי"]
[null,"ה.","טכנולוגיה מסייעת"]
[null,"ו.","מתקני חצר לבוגרים בלבד "]
[null,"ז.","חוגים"]
[null,"ח.","ציוד נוסף"]
[null,"ט.","סיכום "]
[null,"י.","סיכום מפורט (לשימוש משרדי)"]

{"sheet":"ג. שאלון למילוי מגיש הבקשה","index":3,"n_rows":43,"n_cols":5,"rows_kept":43,"cut":false,"hidden":false,"merged":[[20,2,20,3],[32,2,32,3],[38,2,38,3],[30,2,30,3],[28,2,28,3],[26,2,26,3]]}
[]
[]
[]
[]
[]
[]
[]
[null,"תקן ציוד במסגרות פנאי ו/או הארכת יום במסגרות חינוך"]
[null," ציוד כללי, טכנולוגיה מסייעת, מתקני חצר, וחוגים"]
[]
[null,"שאלון למגיש הבקשה"]
[]
[null,"הערות והסברים למילוי הבקשה"]
[null,"יש למלא את השאלון לעיל לפני מעבר לכתב הכמויות"]
[null,"הגוף המבקש מתבקש למלא פרטים בתאים המסומנים בצבע ירוק בלבד. אין למלא תאים אחרים."]
[null,"כל מחירי התקן כוללים מע\"מ בשיעור של 17%."]
[null,"קרן שלם מיועדת לאנשים עם מש\"ה. במסגרת הנותנת מענה רב נכותי, ההתיחסות הינה בהתאם למספר מקבלי השרות המוכרים עם מש\"ה."]
[]
[]
[]
[null,null,"תאריך הגשת הבקשה"]
[]
[null,null,"שם המסגרת"]
[]
[null,null,"סוג המסגרת",null,"נא לבחור מתוך הרשימה"]
[]
[null,null,"שם הרשות"]
[]
[null,null,"שם הארגון המפעיל"]
[]
[null,null,"כתובת המסגרת"]
[]
[null,null,"שם ושם משפחה איש קשר"]
[]
[null,null,"תפקיד איש קשר"]
[]
[null,null,"נייד איש קשר "]
[]
[null,null,"מייל איש קשר"]
[]
[null,null,"מספר האנשים שעבורם מיועד הפרויקט"]
[]
[null,null,"כמה מתוכם מוכרים עם מש\"ה (מוגבלות שיכלית התפתחותית)"]

{"sheet":"   ד. ציוד כללי","index":4,"n_rows":59,"n_cols":15,"rows_kept":59,"cut":false,"hidden":false,"merged":[[4,11,4,14],[4,7,4,9],[52,1,55,1],[18,1,25,1],[27,1,35,1],[37,1,43,1],[45,1,50,1],[6,1,16,1],[4,1,4,5]]}
[null,{"$f":"'ב. תוכן עניינים'!C17","v":"ציוד כללי"},null,null,null,null,null,"שלב הגשת בקשת הגוף:",null,null,null,"שלב הדיווח לתשלום לאחר ביצוע:"]
[null,"שם המסגרת",null,null,{"$f":"'ג. שאלון למילוי מגיש הבקשה'!E23","v":"00:00:00"},null,null,"עליכם למלא גיליון ג' טרם מילוי הגיליונות האחרים ",null,null,null,"לאחר אישור הבקשה יוחזר הגיליון עם הפריטים המאושרים"]
[null,"סוג המסגרת",null,null,{"$f":"'ג. שאלון למילוי מגיש הבקשה'!E25","v":"נא לבחור מתוך הרשימה"},null,null,"גיליונות ד' עד ח' -יש למלא רק עמודות הצבועות בירוק",null,null,null,"גיליונות ד' עד ח' יש למלא רק עמודות הצבועות בכתום/ורוד"]
[null,"מספר האנשים שעבורם מיועד הפרויקט",null,null,{"$f":"'ג. שאלון למילוי מגיש הבקשה'!$E$41","v":0},null,null,"אין לסמן בתאים האחרים- תאים אלו יהיו נעולים",null,null,null,"אין לסמן בתאים האחרים- תאים אלו יהיו נעולים"]
[null,"תקן",null,null,null,null,null,"בקשת הגוף",null,null,null,"דיווח לתשלום לאחר ביצוע"]
[null,"סוג הריהוט / ציוד","תיאור","כמות תקן למסגרת","מחיר ליחידה","תקציב מומלץ לפי תקן",null,"כמות מבוקשת","תקציב מבוקש לקבוצה","הערות הגוף",null,"הפריט שנרכש","מס' חשבונית מס","תאריך חשבונית מס","סכום כולל מע\"מ"]
[null,"ציוד וריהוט כללי ","לוח כתיבה מחיק ",1,200,{"$f":"E7*D7","v":200},null,null,{"$f":"E7*H7","v":0}]
[null,null,"ארון תצוגה ",1,1800,{"$f":"E8*D8","v":1800},null,null,{"$f":"E8*H8","v":0}]
[null,null,"שולחן פעילות מתקפל ",{"$f":"ROUNDUP($E$4/5,0)","v":0},1400,0,null,null,0]
[null,null,"כורסה/ פוף",{"$f":"ROUNDUP($E$4/5,0)","v":0},800,0,null,null,0]
[null,null,"כיסא פעילות",{"$f":"E4","v":0},350,0,null,null,0]
[null,null,"שולחנות ",{"$f":"ROUNDUP($E$4/4,0)","v":0},600,{"$f":"E12*D12","v":0},null,null,0]
[null,null,"ארון אחסון",{"$f":"ROUNDDOWN($E$4/10,0)","v":0},2300,0,null,null,0]
[null,null,"וילונות חסיני אש  (הכמות נקובה במ\"ר)",{"$f":"IF($E$4<21,10,IF($E$4<41,20,IF($E$4<61,30,40)))","v":10},222,2220,null,null,0]
[null,null,"אביזרי עיצוב (תקציב כולל)",1,1800,1800,null,null,0]
[null,null,"מזגנים כולל התקנה",{"$f":"IF($E$4<21,3,IF($E$4<41,4,IF($E$4<61,5,6)))","v":3},7500,22500,null,null,{"$f":"E16*H16","v":0}]
[null,null,"מידוף (תקציב כולל)",1,1000,1000,null,null,{"$f":"E17*H17","v":0}]
[null,"סה\"כ ציוד וריהוט כללי",null,null,null,{"$f":"SUM(F7:F17)","v":29520},null,null,{"$f":"SUM(I7:I17)","v":0},{"$f":"B18","v":"סה\"כ ציוד וריהוט כללי"},null,{"$f":"J18","v":"סה\"כ ציוד וריהוט כללי"},null,null,{"$f":"SUM(O7:O17)","v":0}]
[null,"ציוד מטבח וחדר אוכל - בסיסי","מיקרוגל + גריל",1,1300,{"$f":"E19*D19","v":1300},null,null,{"$f":"E19*H19","v":0}]
[null,null,{"$f":"IF(E4<=40,\"מקרר 600 ליטר\",\"מקרר עד 700 ליטר\")","v":"מקרר 600 ליטר"},1,12000,{"$f":"E20*D20","v":12000},null,null,0]
[null,null,"מתקן למים חמים/ קרים ",1,850,850,null,null,0]
[null,null,"מדיח כלים ",1,2500,2500,null,null,0]
[null,null,"מערבל מזון",1,800,800,null,null,0]
[null,null,"מעבד מזון",1,2500,2500,null,null,0]
[null,null,"תנור אפיה+ כיריים חשמלי",1,2600,2600,null,null,0]
[null,null,"כלי מטבח- תקציב כללי ",1,1000,1000,null,null,0]
[null,"סה\"כ  ציוד מטבח וחדר אוכל - בסיסי",null,null,null,{"$f":"SUM(F19:F26)","v":23550},null,null,{"$f":"SUM(I19:I26)","v":0},{"$f":"B27","v":"סה\"כ  ציוד מטבח וחדר אוכל - בסיסי"},null,{"$f":"J27","v":"סה\"כ  ציוד מטבח וחדר אוכל - בסיסי"},null,null,{"$f":"SUM(O19:O26)","v":0}]
[null,"ציוד לצוות המסגרת","כספת (מתאימה לאחסון וטעינת טאבלטים)",1,4000,{"$f":"E28*D28","v":4000},null,null,0]
[null,null,"מחשב נייח כולל מערכת הפעלה, אופיס, מסך ומקלדת",1,3500,{"$f":"E29*D29","v":3500},null,null,0]
[null,null,"מחשב נייד כולל מערכת הפעלה, אופיס, מסך ומקלדת",1,3600,3600,null,null,0]
[null,null,"מדפסת משולבת ",1,850,850,null,null,0]
[null,null,"ארון אחסון ",{"$f":"IF($E$4<21,1,IF($E$4<41,2,IF($E$4<61,3,4)))","v":1},1400,1400,null,null,0]
[null,null,"שולחן מחשב ",2,820,1640,null,null,0]
[null,null,"מגרסת נייר",1,1100,1100,null,null,0]
[null,null,"מחשב טאבלט",2,1620,3240,null,null,0]
[null,null,"כסא מחשב ",2,420,840,null,null,0]
[null,"סה\"כ מיחשוב (כולל מע\"מ)",null,null,null,{"$f":"SUM(F28:F36)","v":20170},null,null,{"$f":"SUM(I28:I36)","v":0},{"$f":"B37","v":"סה\"כ מיחשוב (כולל מע\"מ)"},null,{"$f":"B37","v":"סה\"כ מיחשוב (כולל מע\"מ)"},null,null,{"$f":"SUM(O28:O36)","v":0}]
[null,"ציוד פנאי בידור","טלויזיה  55 אינץ' + מסך הגנה",{"$f":"IF($E$4<21,1,IF($E$4<41,2,IF($E$4<61,3,4)))","v":1},4000,{"$f":"E38*D38","v":4000},null,null,0]
[null,null,"מתקן תליה לטלוויזיה",{"$f":"D38","v":1},230,{"$f":"E39*D39","v":230},null,null,0]
[null,null,"ברקו ",1,2800,2800,null,null,0]
[null,null,"מצלמה דיגיטלית ",1,900,900,null,null,0]
[null,null,"משחקי חברה (תקציב כולל)",1,2400,2400,null,null,0]
[null,null,"קונסולת משחקים",1,1550,1550,null,null,0]
[null,null,"מערכת סטריאו ",1,800,800,null,null,0]
[null,"סה\"כ ציוד פנאי בידור (כולל מע\"מ)",null,null,null,{"$f":"SUM(F38:F44)","v":12680},null,null,{"$f":"SUM(I38:I44)","v":0},{"$f":"B45","v":"סה\"כ ציוד פנאי בידור (כולל מע\"מ)"},null,{"$f":"B45","v":"סה\"כ ציוד פנאי בידור (כולל מע\"מ)"},null,null,{"$f":"SUM(O38:O44)","v":0}]
[null,"ריהוט גינה","סט ריהוט לגינה הכולל שולחן ושישה כסאות ",{"$f":"IF($E$4<21,1,IF($E$4<41,2,IF($E$4<61,3,4)))","v":1},1800,{"$f":"E46*D46","v":1800},null,null,0]
[null,null,"סוכך",{"$f":"IF($E$4<21,1,IF($E$4<41,2,IF($E$4<61,3,4)))","v":1},1000,{"$f":"E47*D47","v":1000},null,null,0]
[null,null,"ספסל גינה ",{"$f":"IF($E$4<21,1,IF($E$4<41,2,IF($E$4<61,3,4)))","v":1},700,700,null,null,0]
[null,null,"נדנדה לחצר ",{"$f":"IF($E$4<21,1,IF($E$4<41,2,IF($E$4<61,3,4)))","v":1},1400,1400,null,null,0]
[null,null,"מחסן גינה ",1,{"$f":"IF($E$4<21,2000,IF($E$4<41,3000,IF($E$4<61,4000,5000)))","v":2000},2000,null,null,0]
[null,null,"פח זבל גינה ",2,360,720,null,null,0]
[null,"סה\"כ ריהוט גינה (כולל מע\"מ)",null,null,null,{"$f":"SUM(F46:F51)","v":7620},null,null,{"$f":"SUM(I46:I51)","v":0},{"$f":"B52","v":"סה\"כ ריהוט גינה (כולל מע\"מ)"},null,{"$f":"B52","v":"סה\"כ ריהוט גינה (כולל מע\"מ)"},null,null,{"$f":"SUM(O46:O51)","v":0}]
[null,"ציוד בטיחות","מטף כיבוי אש 6 ק\"ג ",{"$f":"IF($E$4<21,1,IF($E$4<41,2,IF($E$4<61,3,4)))","v":1},320,{"$f":"E53*D53","v":320},null,null,0]
[null,null,"תיק עזרה ראשונה ",{"$f":"IF($E$4<21,1,IF($E$4<41,2,IF($E$4<61,3,4)))","v":1},340,{"$f":"E54*D54","v":340},null,null,0]
[null,null,"מערכת מצלמות אבטחה",1,{"$f":"IF($E$4<21,10000,IF($E$4<41,15000,IF($E$4<61,20000,25000)))","v":10000},10000,null,null,0]
[null,null,"תאורת חירום ",{"$f":"IF($E$4<21,1,IF($E$4<41,2,IF($E$4<61,3,4)))","v":1},160,160,null,null,0]
[null,"סה\"כ ציוד בטיחות (כולל מע\"מ)",null,null,null,{"$f":"SUM(F53:F56)","v":10820},null,null,{"$f":"SUM(I53:I56)","v":0},{"$f":"B57","v":"סה\"כ ציוד בטיחות (כולל מע\"מ)"},null,{"$f":"B57","v":"סה\"כ ציוד בטיחות (כולל מע\"מ)"},null,null,{"$f":"SUM(O53:O56)","v":0}]
[null,"תוספות","עיצוב פנים",1,10000,{"$f":"E58*D58","v":10000},null,null,0]
[null,"סה\"כ ציוד כללי (כולל מע\"מ)",null,null,null,{"$f":"F18+F27+F37+F45+F52+F57+F58","v":114360},null,null,{"$f":"I18+I27+I37+I45+I52+I57+I58","v":0},{"$f":"B59","v":"סה\"כ ציוד כללי (כולל מע\"מ)"},null,{"$f":"J59","v":"סה\"כ ציוד כללי (כולל מע\"מ)"},null,null,{"$f":"O18+O27+O37+O45+O52+O57+O58","v":0}]

{"sheet":"ה. טכנולוגיה מסייעת","index":5,"n_rows":11,"n_cols":15,"rows_kept":11,"cut":false,"hidden":false,"merged":[[6,1,9,1],[4,1,4,5],[4,7,4,9],[4,11,4,14]]}
[null,{"$f":"'ב. תוכן עניינים'!C18","v":"טכנולוגיה מסייעת"},null,null,null,null,null,"שלב הגשת בקשת הגוף:",null,null,null,"שלב הדיווח לתשלום לאחר ביצוע:"]
[null,"שם המסגרת",null,null,{"$f":"'ג. שאלון למילוי מגיש הבקשה'!E23","v":"00:00:00"},null,null,"יש למלא גיליון ג' טרם מילוי הגיליונות האחרים ",null,null,null,"לאחר אישור הבקשה יוחזר הגיליון עם הפריטים המאושרים"]
[null,"סוג המסגרת",null,null,{"$f":"'ג. שאלון למילוי מגיש הבקשה'!E25","v":"נא לבחור מתוך הרשימה"},null,null,"גיליונות ד' עד ח' -יש למלא רק עמודות הצבועות בירוק",null,null,null,"גיליונות ד' עד ח' יש  למלא רק עמודות הצבועות בכתום/ורוד"]
[null,"מספר האנשים שעבורם מיועד הפרויקט",null,null,{"$f":"'ג. שאלון למילוי מגיש הבקשה'!$E$41","v":0},null,null,"אין לגעת בתאים האחרים- תאים אלו יהיו נעולים",null,null,null,"אין לגעת בתאים האחרים- תאים אלו יהיו נעולים"]
[null,"תקן",null,null,null,null,null,"בקשת הגוף",null,null,null,"דיווח לתשלום"]
[null,"סוג מסגרת פעילות","תיאור","כמות תקן למסגרת","מחיר ליחידה","תקציב מומלץ לפי תקן",null,"כמות מבוקשת","תקציב מבוקש לקבוצה","הערות הגוף",null,"הפריט שנרכש","מס' חשבונית מס","תאריך חשבונית מס","סכום כולל מע\"מ"]
[null,"אוכלוסיה עם מוגבלות מוטורית ","שולחנות חשמליים מתכווננים למחשב ",1,5700,{"$f":"E7*D7","v":5700},null,null,{"$f":"E7*H7","v":0}]
[null,null,"מקלדת ארגונומית ",1,1000,{"$f":"E8*D8","v":1000},null,null,{"$f":"E8*H8","v":0}]
[null,null,"עכבר ארגונומי ",1,850,850,null,null,0]
[null,null,"כסא שירותים מתכוונן ",1,2200,2200,null,null,0]
[null,"סה\"כ טכנולוגיה מסייעת (כולל מע\"מ)",null,null,null,{"$f":"SUM(F7:F10)","v":9750},null,null,{"$f":"SUM(I7:I10)","v":0},{"$f":"B11","v":"סה\"כ טכנולוגיה מסייעת (כולל מע\"מ)"},null,{"$f":"J11","v":"סה\"כ טכנולוגיה מסייעת (כולל מע\"מ)"},null,null,{"$f":"SUM(O7:O10)","v":0}]

{"sheet":"ו. מתקני חצר לבוגרים  ","index":6,"n_rows":51,"n_cols":16,"rows_kept":51,"cut":false,"hidden":false,"merged":[[24,1,25,1],[26,1,27,1],[28,1,32,1],[33,1,36,1],[9,2,9,3],[10,2,10,3],[11,2,11,3],[12,2,12,3],[18,2,18,3],[19,2,19,3],[20,2,20,3],[21,2,21,3],[13,2,13,3],[14,2,14,3],[15,2,15,3],[16,2,16,3],[4,12,4,15],[17,2,17,3],[4,8,4,10],[5,2,5,3],[7,2,7,3],[8,2,8,3]]}
[null,{"$f":"'ב. תוכן עניינים'!C19","v":"מתקני חצר לבוגרים בלבד "},null,null,null,null,null,null,"שלב הגשת בקשת הגוף:",null,null,null,"שלב הדיווח לתשלום לאחר ביצוע:"]
[null,{"$f":"'   ד. ציוד כללי'!B2","v":"שם המסגרת"},null,{"$f":"'   ד. ציוד כללי'!$E2","v":"00:00:00"},null,null,null,null,"יש למלא גיליון ג' בטרם מילוי הגיליונות האחרים.",null,null,null,"לאחר אישור הבקשה יוחזר הגיליון עם הפריטים המאושרים"]
[null,{"$f":"'   ד. ציוד כללי'!B3","v":"סוג המסגרת"},null,{"$f":"'   ד. ציוד כללי'!$E3","v":"נא לבחור מתוך הרשימה"},null,null,null,null,"גיליונות ד' עד ח' -יש למלא רק עמודות הצבועות בירוק",null,null,null,"גיליונות ד' עד ח', יש למלא רק עמודות הצבועות בכתום/ורוד"]
[null,{"$f":"'   ד. ציוד כללי'!B4","v":"מספר האנשים שעבורם מיועד הפרויקט"},null,{"$f":"'   ד. ציוד כללי'!$E4","v":0},null,null,null,null,"אין לסמן בתאים האחרים- תאים אלו יהיו נעולים",null,null,null,"אין לסמן בתאים האחרים- תאים אלו יהיו נעולים"]
[null,null,null,"תקן",null,null,null,null,"בקשת הגוף",null,null,null,"דיווח לתשלום"]
[null,"מתקן","תיאור",null,"כמות תקן למסגרת","מחיר ליחידה","תקציב מומלץ לפי תקן",null,"כמות מבוקשת","תקציב מבוקש לקבוצה","הערות הגוף",null,"הפריט שנרכש","מס' חשבונית מס","תאריך חשבונית מס","סכום כולל מע\"מ"]
[null,"מתקני חצר",null,null,null,null,null,null,{"$f":"B7","v":"מתקני חצר"},null,null,null,{"$f":"I7","v":"מתקני חצר"}]
[null,"לחיצת חזה משיכה עליונה","מתקן זוגי דחיקת חזה ומשיכה עליונה זוגי שתי\nמנחי פעילות אפשריות מנח יד אופקי ואנכי\nאימון שרירי חזה כלל השרירים\nכולל מדרכי רגל לקיבוע הגפיים",null,1,15000,{"$f":"E8*F8","v":15000},null,null,{"$f":"F8*I8","v":0}]
[null,"מתקן דחיקת כתפיים למשתמש","מתקן דחיקת כתפיים לאימון שרירי הכתפים\nוהיד הקדמית בלדחיקה מעלה לכיוון הכתף כולל\nידיות לקימה וישיבה והנגשה לאוכלוסיות\nמיוחדות כולל מדרכי רגל לקיבוע הגפיים",null,1,8500,{"$f":"E9*F9","v":8500},null,null,{"$f":"F9*I9","v":0}]
[null,"מתקן פרפר חזה","מתקן פרפר סגירה לאימון שרירי החזה ,בתוספת זוג ידיות אחיזה של מנחי פעילות של סגירה צרה וסגירה רחבה כולל משענות יד ומדרך רגל\nלקיבוע הגפיים",null,1,10500,10500,null,null,{"$f":"F10*I10","v":0}]
[null,"מתקן פרפר הפוך","מתקן פרפר פתיחה לאימון שרירי החזה, בתוספת ידיות אחיזה כולל משענות יד ומדרך רגל לקיבוע הגפיים",null,1,10500,10500,null,null,{"$f":"F11*I11","v":0}]
[null,"מתקן מקבילי כנף לזוג\nמשתמשים","מקבילי כנף בשני גבהים ברוחב אופטימאלי לאימון יד אחורית מונגש לאוכלוסיות גבוהות ונמוכות",null,1,6000,6000,null,null,0]
[null,"מתקן דחיקת רגליים לזוג משתמשים","מתקן דחיקת ארבע ראשים ושרירי התאומים בישיבה – כולל מנגנון הבטחה ומעצור למניעת היפוך זרוע ומפתח קיצוני",null,1,11000,11000,null,null,0]
[null,"מתקן סקי","מתקן סקי לאימון אירובי פעילות ידיים רגליים בתנועה קדימה ואחורה כולל מעצור למניעת מפתח קיצוני",null,1,7000,7000,null,null,0]
[null,"מתקן הליכה באוויר לזוג משתמשים","מתקן הליכה באוויר לזוג לאימון אירובי אימון ופיתוח מיומניות הליכה ,הגמשת המפשעה תנועת רגליים קדימה ואחורה כולל מעצור למניעת מפתח קיצוני, עד 70 מעלות",null,1,11000,11000,null,null,0]
[null,"מתקן חתירה בכורסא","מתקן אירובי לפלג גוף עליון לאימון הגב והזרועות לאימון אירובי ,תנועת ידיות אחיזה קדימה ואחורה כולל מעצור למניעת מפתח קיצוני, עד 70 מעלות",null,1,7000,7000,null,null,0]
[null,"מתקן מאמן אגן, שרירי בטן, ישבן  וירכיים בתנועת מטוטלת","התקן לארבעה משתמשים כולל תחנות לכיפוף ברכיים ותנועת אגן, חיזוק מותניים בטן תחתונה והצרת היקפי מותן חיזוק ואימון ישבן יריכיים\nכולל מעצור למניעת מפתח קיצוני, עד 70 מעלות",null,1,9500,9500,null,null,0]
[null,"מתקן אופני ידיים רגליים","מתקן לאימון קואורדינציה ותיאום יד ורגל, ביצוע תנועות סיבוב אופני ידיים לחיזוק רצועות הכתפיים יחד עם ביצוע ודיווש רגליים לחיזוק רגליים, ירך וישבן כולל מנגנון התנגדות אופטימאלית נגיש לכלל האוכלוסיות",null,1,7000,7000,null,null,0]
[null,"מתקן אימון פולי תחתון בתמיכת חזה","מתקן פעילות ליד קדמית בצורת פעילות של משיכה תחתונה בתמיכת חזה, פעילות בישיבה זקופה 3 מנחי פעילות אפשריות מנח יד אופקי ואנכי אימון שרירי היד הקדמית ושרירי שכמות / גב כולל מדרכי רגל לקיבוע הגפיים",null,1,9500,9500,null,null,0]
[null,"מתקן אופני ספיננג","מתקן לאימון קואורדינציה ותיאום יד ורגל, ביצוע תנועות סיבוב אופני ידיים לחיזוק רצועות הכתפיים יחד עם ביצוע ודיווש רגליים לחיזוק רגליים, ירך וישבן כולל מנגנון התנגדות אופטימאלית. נגיש לכלל האוכלוסיות",null,1,6500,6500,null,null,0]
[null,"מתקן דחיקת רגליים ארבע","מתקן דחיקה אימון ארבע ראשי  ושרירי התאומים בישיבה – כולל מנגנון הבטחה ומעצור למניעת היפוך זרוע ומפתח קיצוני",null,1,15000,15000,null,null,0]
[null,"מתקן מתח –מקבילים וכורסת בטן","מתקן לאימון פונקציונאלי אימון כושר חופשי\nמודולארי מעוגן באמצעות חובקים .\nניתן לקבלו במספר צורות וגבהים בהתאם\nלגרישות לקוח וצורת האימון המבוקשת",null,1,14500,14500,null,null,0]
[null,"סה\"כ מתקני חצר (כולל מע\"מ)",null,null,null,null,{"$f":"SUM(G8:G22)","v":148500},null,null,{"$f":"SUM(J8:J22)","v":0},{"$f":"B23","v":"סה\"כ מתקני חצר (כולל מע\"מ)"},null,{"$f":"K23","v":"סה\"כ מתקני חצר (כולל מע\"מ)"},null,null,{"$f":"SUM(P8:P22)","v":0}]
[null,"ציוד ואביזרים",null,null,null,null,null,null,{"$f":"B24","v":"ציוד ואביזרים"},null,null,null,{"$f":"B24","v":"ציוד ואביזרים"}]
[null,"ילדים /בוגרים","נדנדה קן לציפור",null,1,11800,{"$f":"E25*F25","v":11800},null,null,{"$f":"F25*I25","v":0}]
[null,null,"מתקן נדנדות כפול",null,1,6500,6500,null,null,0]
[null,"ילדים","מתקן משולב ",null,1,32000,32000,null,null,0]
[null,null,"מתקן קפיץ",null,1,7600,7600,null,null,0]
[null,"נוער/בוגרים ","דחיקת רגלים",null,1,6000,6000,null,null,0]
[null,null,"חתירה",null,1,6100,6100,null,null,0]
[null,null,"אופנים עם מושב",null,1,4500,4500,null,null,0]
[null,null,"דחיקת ידים",null,1,8500,8500,null,null,0]
[null,null,"נדנדת מושב",null,1,6500,6500,null,null,0]
[null,"משחקים ואביזרים","שולחן פינג פונג",null,1,1800,1800,null,null,0]
[null,null,"הוקי",null,1,2950,2950,null,null,0]
[null,null,"כדורגל שולחן",null,1,4690,4690,null,null,0]
[null,null,"משטח גומי עלות למ\"ר 1",null,80,220,17600,null,null,0]
[null,"סה\"כ ציוד ואביזרים (כולל מע\"מ)",null,null,null,null,{"$f":"SUM(G25:G37)","v":116540},null,null,{"$f":"SUM(J25:J37)","v":0},{"$f":"B38","v":"סה\"כ ציוד ואביזרים (כולל מע\"מ)"},null,{"$f":"K38","v":"סה\"כ ציוד ואביזרים (כולל מע\"מ)"},null,null,{"$f":"SUM(P25:P37)","v":0}]
[null,"סה\"כ מתקני חצר לבוגרים (כולל מע\"מ)",null,null,null,null,{"$f":"G23+G38","v":265040},null,null,{"$f":"J23+J38","v":0},{"$f":"B39","v":"סה\"כ מתקני חצר לבוגרים (כולל מע\"מ)"},null,{"$f":"K39","v":"סה\"כ מתקני חצר לבוגרים (כולל מע\"מ)"},null,null,{"$f":"P23+P38","v":0}]
[]
[null,"הערות:"]
[null,"מותנה בביצוע תשתיות, הצללה וריצוף גומי עח הגוף הפונה"]
[null,"האישור מותנה בהצגת תכנית העמדת המתקנים"]
[null,"המתקנים מחויבים בתו תקן "]
[null,"הסעיפים הנ\"ל מציגים מתקנים לדוגמה שיכולים להשתנות מפרויקט לפרויקט בהתאם למאפייני הגוף המבקש"]
[]
[]
[]
[]
[]
[null,null,null," "]

{"sheet":"ז. חוגים","index":7,"n_rows":24,"n_cols":15,"rows_kept":24,"cut":false,"hidden":false,"merged":[[4,11,4,14],[18,1,18,2],[4,1,4,4],[4,7,4,9],[17,1,17,2],[7,1,9,1],[11,1,16,1],[10,1,10,2]]}
[null,{"$f":"'ב. תוכן עניינים'!C20","v":"חוגים"},null,null,null,null,null,"שלב הגשת בקשת הגוף:",null,null,null,"שלב הדיווח לתשלום לאחר ביצוע:"]
[null,{"$f":"'   ד. ציוד כללי'!B2","v":"שם המסגרת"},null,null,{"$f":"'   ד. ציוד כללי'!E2","v":"00:00:00"},null,null,"יש למלא גיליון ג' בטרם מילוי הגיליונות האחרים.",null,null,null,"לאחר אישור הבקשה יוחזר הגיליון עם הפריטים המאושרים"]
[null,{"$f":"'   ד. ציוד כללי'!B3","v":"סוג המסגרת"},null,null,{"$f":"'   ד. ציוד כללי'!E3","v":"נא לבחור מתוך הרשימה"},null,null,"גיליונות ד' עד ח' -יש למלא רק עמודות הצבועות בירוק",null,null,null,"גיליונות ד' עד ח' יש למלא רק עמודות הצבועות בכתום/ורוד"]
[null,{"$f":"'   ד. ציוד כללי'!B4","v":"מספר האנשים שעבורם מיועד הפרויקט"},null,null,{"$f":"'   ד. ציוד כללי'!E4","v":0},null,null,"אין לגעת בתאים האחרים- תאים אלו יהיו נעולים",null,null,null,"אין לגעת בתאים האחרים- תאים אלו יהיו נעולים"]
[null,"תקן",null,null,null,null,null,"בקשת הגוף",null,null,null,"דיווח לתשלום"]
[null,"פריטים","תיאור","כמות תקן למסגרת","מחיר ליחידה","תקציב מומלץ לפי תקן",null,"כמות מבוקשת","תקציב מבוקש לקבוצה","הערות הגוף",null,"הפריט שנרכש","מס' חשבונית מס","תאריך חשבונית מס","סכום כולל מע\"מ"]
[null,"חוג מחשבים",null,null,null,null,null,{"$f":"B7","v":"חוג מחשבים"},null,null,null,{"$f":"B7","v":"חוג מחשבים"}]
[null,"  (מותנה בקיומו של חדר ייעודי) ","מחשב נייח כולל מקלדת ועכבר",{"$f":"IF($E$4<21,4,IF($E$4<41,6,IF($E$4<61,8,8)))","v":4},3500,{"$f":"D8*E8","v":14000},null,null,{"$f":"E8*H8","v":0}]
[null,null,"שולחן מחשב",{"$f":"D8","v":4},820,{"$f":"D9*E9","v":3280},null,null,{"$f":"E9*H9","v":0}]
[null,null,"כסא",{"$f":"D8","v":4},350,1400,null,null,0]
[null,"סה\"כ חוג מחשבים (כולל מע\"מ)",null,null,null,{"$f":"SUM(F8:F10)","v":18680},null,null,{"$f":"SUM(I8:I10)","v":0},{"$f":"B11","v":"סה\"כ חוג מחשבים (כולל מע\"מ)"},null,{"$f":"J11","v":"סה\"כ חוג מחשבים (כולל מע\"מ)"},null,null,{"$f":"SUM(O8:O10)","v":0}]
[null,"חוגים נוספים","קרמיקה כולל תנור וציוד נילווה  (רכישת התנור מותנת בקיום חדר נפרד לתנור 5 מ\"ר- 7 מ\"ר תנור קרמיקה תוצרת חו\"ל דורש תו תקן מת\"י)",1,19200,19200,null,null,0]
[null,null,"מוזיקה",1,12000,12000,null,null,0]
[null,null,"בישול ",1,5000,5000,null,null,0]
[null,null,"ציוד לפעילות גופנית קלה",1,5000,5000,null,null,0]
[null,null,"חוג עיצוב וייצור מוצרים: מדפסת תלת מימד (נדרש מדריך בעל ידע וניסיון בהפעלת המדפסת)",1,42000,42000,null,null,0]
[null,null,"חוגים נוספים (יש לפרט את החוג ואת הציוד המבוקש עבורו )",1,7000,7000,null,null,0]
[null,"סה\"כ חוגים נוספים (כולל מע\"מ)",null,null,null,{"$f":"SUM(F12:F17)","v":90200},null,null,{"$f":"SUM(I12:I17)","v":0},{"$f":"B18","v":"סה\"כ חוגים נוספים (כולל מע\"מ)"},null,{"$f":"J18","v":"סה\"כ חוגים נוספים (כולל מע\"מ)"},null,null,{"$f":"SUM(O12:O17)","v":0}]
[null,"סה\"כ  חוגים(כולל מע\"מ)",null,null,null,{"$f":"F11+F18","v":108880},null,null,{"$f":"I11+I18","v":0},{"$f":"B19","v":"סה\"כ  חוגים(כולל מע\"מ)"},null,{"$f":"J19","v":"סה\"כ  חוגים(כולל מע\"מ)"},null,null,{"$f":"O11+O18","v":0}]
[]
[null,"הערות:"]
[null,"יש לצרף תוכנית פעילות שבועית"]
[null,"על הגוף המבקש להוכיח שעומדים לרשותו משאבים וכ\"א הנדרש להפעלת הפעילות המבוקשת "]
[null,"לא יינתן סיוע לרכישת ציוד מתכלה"]

{"sheet":"ח. ציוד נוסף ","index":8,"n_rows":29,"n_cols":18,"rows_kept":29,"cut":false,"hidden":false,"merged":[[5,14,5,17],[5,7,5,9],[5,4,5,6],[5,10,5,12]]}
[null,{"$f":"'ב. תוכן עניינים'!C21","v":"ציוד נוסף"},null,null,null,null,null,null,null,null,"שלב הגשת בקשת הגוף:",null,null,null,"שלב הדיווח לתשלום לאחר ביצוע:"]
[null,"ניתן להכניס בטבלה זאת ציוד שאינו מופיע  בתקן.  יש להציג  2  הצעות מחיר  ולציין  בטורים  K-L  את  ההצעה המועדפת. ",null,null,null,null,null,null,null,null,"יש למלא גיליון ג' בטרם מילוי הגיליונות האחרים.",null,null,null,"לאחר אישור הבקשה יוחזר הגיליון עם הפריטים המאושרים"]
[null,{"$f":"'   ד. ציוד כללי'!B2","v":"שם המסגרת"},null,null,{"$f":"'   ד. ציוד כללי'!E2","v":"00:00:00"},null,"נקלט אוטומטית מהשאלון למילוי מגיש הבקשה",null,null,null,"גיליונות ד' עד ח' -עליכם למלא רק עמודות הצבועות בירוק",null,null,null,"גיליונות ד' עד ח', יש למלא רק עמודות הצבועות בכתום/ורוד"]
[null,{"$f":"'   ד. ציוד כללי'!B3","v":"סוג המסגרת"},null,null,{"$f":"'   ד. ציוד כללי'!E3","v":"נא לבחור מתוך הרשימה"},null,null,null,null,null,"אין לגעת בתאים האחרים- תאים אלו יהיו נעולים",null,null,null,"אין לגעת בתאים האחרים- תאים אלו יהיו נעולים"]
[null,{"$f":"'   ד. ציוד כללי'!B4","v":"מספר האנשים שעבורם מיועד הפרויקט"},{"$f":"IF('ג. שאלון למילוי מגיש הבקשה'!$E$27=\"\",\"נא למלא שאלון למילוי מגיש הבקשה\",'ג. שאלון למילוי מגיש הבקשה'!$E$27)","v":"נא למלא שאלון למילוי מגיש הבקשה"},null,{"$f":"'ג. שאלון למילוי מגיש הבקשה'!E41","v":0}]
[null,"ציוד נוסף",null,null,"הצעה ראשונה ",null,null," הצעה שניה",null,null,"הצעה מועדפת",null,null,null,"דיווח לתשלום"]
[null,"תאור הציוד","יעוד הציוד","כמות מבוקשת","הספק 1","מחיר ליחידה ","סכום ","שם הספק 2","מחיר ליחידה ","סכום","הספק המועדף","מחיר ליחידה ","סכום",null,"הפריט שנרכש","מס' חשבונית מס ","תאריך חשבונית מס","סכום כולל מעמ"]
[null,null,null,null,null,null,{"$f":"D8*F8","v":0},null,null,{"$f":"$D8*I8","v":0},null,null,{"$f":"D8*L8","v":0}]
[null,null,null,null,null,null,0,null,null,{"$f":"$D9*I9","v":0},null,null,0]
[null,null,null,null,null,null,0,null,null,0,null,null,0]
[null,null,null,null,null,null,0,null,null,0,null,null,0]
[null,null,null,null,null,null,0,null,null,0,null,null,0]
[null,null,null,null,null,null,0,null,null,0,null,null,0]
[null,null,null,null,null,null,0,null,null,0,null,null,0]
[null,null,null,null,null,null,0,null,null,0,null,null,0]
[null,null,null,null,null,null,0,null,null,0,null,null,0]
[null,null,null,null,null,null,0,null,null,0,null,null,0]
[null,null,null,null,null,null,0,null,null,0,null,null,0]
[null,null,null,null,null,null,0,null,null,0,null,null,{"$f":"D19*L19","v":0}]
[null,null,null,null,null,null,0,null,null,0,null,null,0]
[null,null,null,null,null,null,0,null,null,0,null,null,0]
[null,null,null,null,null,null,0,null,null,0,null,null,0]
[null,null,null,null,null,null,0,null,null,0,null,null,0]
[null,null,null,null,null,null,0,null,null,0,null,null,0]
[null,null,null,null,null,null,0,null,null,0,null,null,0]
[null,null,null,null,null,null,0,null,null,0,null,null,0]
[null,null,null,null,null,null,0,null,null,0,null,null,0]
[null,null,null,null,null,null,0,null,null,0,null,null,0]
[null,"סה\"כ  ציוד נוסף(כולל מע\"מ)",null,null,null,null,{"$f":"SUM(G8:G28)","v":0},null,null,{"$f":"SUM(J8:J28)","v":0},null,null,{"$f":"SUM(M8:M28)","v":0},null,{"$f":"B29","v":"סה\"כ  ציוד נוסף(כולל מע\"מ)"},null,null,{"$f":"SUM(R8:R28)","v":0}]

{"sheet":"ט. סיכום","index":9,"n_rows":38,"n_cols":4,"rows_kept":38,"cut":false,"hidden":false,"merged":[]}
[]
[]
[]
[]
[]
[]
[]
[null,"תקן ציוד במסגרות פנאי ו/או הארכת יום במסגרות חינוך"]
[null," ציוד כללי, טכנולוגיה מסייעת, מתקני חצר, וחוגים"]
[]
[null,"דוח ביצוע מסכם"]
[]
[null,"הנחיות לקבלת תשלום : "]
[null,"יש למלא את ההוצאות בפועל בכל אחד מהגיליונות הרלבנטיים הקודמים. הסכומים יעודכנו אוטומטית בגיליון זה."]
[null,"יש לשלוח את הקובץ הזה במלואו באימייל המצויין מטה."]
[null,"יש להדפיס עמוד זה ולהחתים כנדרש "]
[null,"בנוסף יש לצרף :"]
[null,"צילומי חשבוניות מס / קבלות או כרטסת חתומה ע\"י רו\"ח של ארגון מפעיל/ גזבר הרשות"]
[null,"את הדיווחים  לתשלום  ואת הקובץ במלואו יש לשלוח במייל : limor@kshalem.org.il"]
[null,"באחריות השולח לוודא כי החמרים הגיעו ליעדם "]
[]
[null,{"$f":"'   ד. ציוד כללי'!B2","v":"שם המסגרת"},{"$f":"'   ד. ציוד כללי'!E2","v":"00:00:00"}]
[null,{"$f":"'   ד. ציוד כללי'!B3","v":"סוג המסגרת"},{"$f":"'   ד. ציוד כללי'!E3","v":"נא לבחור מתוך הרשימה"}]
[null,{"$f":"'   ד. ציוד כללי'!B4","v":"מספר האנשים שעבורם מיועד הפרויקט"},{"$f":"'   ד. ציוד כללי'!E4","v":0}]
[]
[null,"ציוד על פי נושאים","סכום מאושר","סכום שבוצע בפועל"]
[null,{"$f":"'   ד. ציוד כללי'!B1","v":"ציוד כללי"},{"$f":"'   ד. ציוד כללי'!I59","v":0},{"$f":"'   ד. ציוד כללי'!O59","v":0}]
[null,{"$f":"'ה. טכנולוגיה מסייעת'!B1","v":"טכנולוגיה מסייעת"},{"$f":"'ה. טכנולוגיה מסייעת'!I11","v":0},{"$f":"'ה. טכנולוגיה מסייעת'!O11","v":0}]
[null,{"$f":"'ו. מתקני חצר לבוגרים  '!B1","v":"מתקני חצר לבוגרים בלבד "},{"$f":"'ו. מתקני חצר לבוגרים  '!J39","v":0},{"$f":"'ו. מתקני חצר לבוגרים  '!P39","v":0}]
[null,{"$f":"'ז. חוגים'!B1","v":"חוגים"},{"$f":"'ז. חוגים'!I19","v":0},{"$f":"'ז. חוגים'!O19","v":0}]
[null,{"$f":"'ח. ציוד נוסף '!B1","v":"ציוד נוסף"},{"$f":"'ח. ציוד נוסף '!M29","v":0},{"$f":"'ח. ציוד נוסף '!R29","v":0}]
[null,"סה\"כ בקשה כולל מע\"מ",{"$f":"SUM(C27:C31)","v":0},{"$f":"SUM(D27:D31)","v":0}]
[]
[null,"מספר פרוייקט קרן שלם"]
[]
[null,"חתימה וחותמת גזבר/רו\"ח"]
[]
[null,"תאריך "]

{"sheet":"י. סיכום מפורט (לשימוש משרדי)","index":10,"n_rows":126,"n_cols":16376,"rows_kept":126,"cut":false,"hidden":false,"merged":[]}
[{"$f":"'ב. תוכן עניינים'!C23","v":"סיכום מפורט (לשימוש משרדי)"}]
["מספר מק\"ט",{"$f":"'ט. סיכום'!C34","v":0}]
[{"$f":"'   ד. ציוד כללי'!B2","v":"שם המסגרת"},{"$f":"'   ד. ציוד כללי'!E2","v":"00:00:00"}]
[{"$f":"'   ד. ציוד כללי'!B3","v":"סוג המסגרת"},{"$f":"'   ד. ציוד כללי'!E3","v":"נא לבחור מתוך הרשימה"}]
[{"$f":"'   ד. ציוד כללי'!B4","v":"מספר האנשים שעבורם מיועד הפרויקט"},{"$f":"'   ד. ציוד כללי'!E4","v":0}]
[null,"בקשה / אישור",null,null,"דיווח לתשלום"]
[{"$f":"'   ד. ציוד כללי'!C6","v":"תיאור"},{"$f":"'   ד. ציוד כללי'!H6","v":"כמות מבוקשת"},{"$f":"'   ד. ציוד כללי'!I6","v":"תקציב מבוקש לקבוצה"},null,{"$f":"'   ד. ציוד כללי'!L6","v":"הפריט שנרכש"},{"$f":"'   ד. ציוד כללי'!M6","v":"מס' חשבונית מס"},{"$f":"'   ד. ציוד כללי'!N6","v":"תאריך חשבונית מס"},{"$f":"'   ד. ציוד כללי'!O6","v":"סכום כולל מע\"מ"}]
[{"$f":"'ב. תוכן עניינים'!C17","v":"ציוד כללי"},null,null,null,{"$f":"A8","v":"ציוד כללי"}]
[{"$f":"'   ד. ציוד כללי'!C7","v":"לוח כתיבה מחיק "},{"$f":"'   ד. ציוד כללי'!H7","v":0},{"$f":"'   ד. ציוד כללי'!I7","v":0},null,{"$f":"'   ד. ציוד כללי'!L7","v":0},{"$f":"'   ד. ציוד כללי'!M7","v":0},{"$f":"IF(F9=0,\"\",'   ד. ציוד כללי'!N7)","v":""},{"$f":"'   ד. ציוד כללי'!O7","v":0}]
[{"$f":"'   ד. ציוד כללי'!C8","v":"ארון תצוגה "},{"$f":"'   ד. ציוד כללי'!H8","v":0},{"$f":"'   ד. ציוד כללי'!I8","v":0},null,{"$f":"'   ד. ציוד כללי'!L8","v":0},{"$f":"'   ד. ציוד כללי'!M8","v":0},{"$f":"IF(F10=0,\"\",'   ד. ציוד כללי'!N8)","v":""},{"$f":"'   ד. ציוד כללי'!O8","v":0}]
[{"$f":"'   ד. ציוד כללי'!C9","v":"שולחן פעילות מתקפל "},{"$f":"'   ד. ציוד כללי'!H9","v":0},{"$f":"'   ד. ציוד כללי'!I9","v":0},null,{"$f":"'   ד. ציוד כללי'!L9","v":0},{"$f":"'   ד. ציוד כללי'!M9","v":0},{"$f":"IF(F11=0,\"\",'   ד. ציוד כללי'!N9)","v":""},{"$f":"'   ד. ציוד כללי'!O9","v":0}]
[{"$f":"'   ד. ציוד כללי'!C10","v":"כורסה/ פוף"},{"$f":"'   ד. ציוד כללי'!H10","v":0},{"$f":"'   ד. ציוד כללי'!I10","v":0},null,{"$f":"'   ד. ציוד כללי'!L10","v":0},{"$f":"'   ד. ציוד כללי'!M10","v":0},{"$f":"IF(F12=0,\"\",'   ד. ציוד כללי'!N10)","v":""},{"$f":"'   ד. ציוד כללי'!O10","v":0}]
[{"$f":"'   ד. ציוד כללי'!C11","v":"כיסא פעילות"},{"$f":"'   ד. ציוד כללי'!H11","v":0},{"$f":"'   ד. ציוד כללי'!I11","v":0},null,{"$f":"'   ד. ציוד כללי'!L11","v":0},{"$f":"'   ד. ציוד כללי'!M11","v":0},{"$f":"IF(F13=0,\"\",'   ד. ציוד כללי'!N11)","v":""},{"$f":"'   ד. ציוד כללי'!O11","v":0}]
[{"$f":"'   ד. ציוד כללי'!C12","v":"שולחנות "},{"$f":"'   ד. ציוד כללי'!H12","v":0},{"$f":"'   ד. ציוד כללי'!I12","v":0},null,{"$f":"'   ד. ציוד כללי'!L12","v":0},{"$f":"'   ד. ציוד כללי'!M12","v":0},{"$f":"IF(F14=0,\"\",'   ד. ציוד כללי'!N12)","v":""},{"$f":"'   ד. ציוד כללי'!O12","v":0}]
[{"$f":"'   ד. ציוד כללי'!C13","v":"ארון אחסון"},{"$f":"'   ד. ציוד כללי'!H13","v":0},{"$f":"'   ד. ציוד כללי'!I13","v":0},null,{"$f":"'   ד. ציוד כללי'!L13","v":0},{"$f":"'   ד. ציוד כללי'!M13","v":0},{"$f":"IF(F15=0,\"\",'   ד. ציוד כללי'!N13)","v":""},{"$f":"'   ד. ציוד כללי'!O13","v":0}]
[{"$f":"'   ד. ציוד כללי'!C14","v":"וילונות חסיני אש  (הכמות נקובה במ\"ר)"},{"$f":"'   ד. ציוד כללי'!H14","v":0},{"$f":"'   ד. ציוד כללי'!I14","v":0},null,{"$f":"'   ד. ציוד כללי'!L14","v":0},{"$f":"'   ד. ציוד כללי'!M14","v":0},{"$f":"IF(F16=0,\"\",'   ד. ציוד כללי'!N14)","v":""},{"$f":"'   ד. ציוד כללי'!O14","v":0}]
[{"$f":"'   ד. ציוד כללי'!C15","v":"אביזרי עיצוב (תקציב כולל)"},{"$f":"'   ד. ציוד כללי'!H15","v":0},{"$f":"'   ד. ציוד כללי'!I15","v":0},null,{"$f":"'   ד. ציוד כללי'!L15","v":0},{"$f":"'   ד. ציוד כללי'!M15","v":0},{"$f":"IF(F17=0,\"\",'   ד. ציוד כללי'!N15)","v":""},{"$f":"'   ד. ציוד כללי'!O15","v":0}]
[{"$f":"'   ד. ציוד כללי'!C16","v":"מזגנים כולל התקנה"},{"$f":"'   ד. ציוד כללי'!H16","v":0},{"$f":"'   ד. ציוד כללי'!I16","v":0},null,{"$f":"'   ד. ציוד כללי'!L16","v":0},{"$f":"'   ד. ציוד כללי'!M16","v":0},{"$f":"IF(F18=0,\"\",'   ד. ציוד כללי'!N16)","v":""},{"$f":"'   ד. ציוד כללי'!O16","v":0}]
[{"$f":"'   ד. ציוד כללי'!C17","v":"מידוף (תקציב כולל)"},{"$f":"'   ד. ציוד כללי'!H17","v":0},{"$f":"'   ד. ציוד כללי'!I17","v":0},null,{"$f":"'   ד. ציוד כללי'!L17","v":0},{"$f":"'   ד. ציוד כללי'!M17","v":0},{"$f":"IF(F19=0,\"\",'   ד. ציוד כללי'!N17)","v":""},{"$f":"'   ד. ציוד כללי'!O17","v":0}]
[{"$f":"'   ד. ציוד כללי'!C19","v":"מיקרוגל + גריל"},{"$f":"'   ד. ציוד כללי'!H19","v":0},{"$f":"'   ד. ציוד כללי'!I19","v":0},null,{"$f":"'   ד. ציוד כללי'!L19","v":0},{"$f":"'   ד. ציוד כללי'!M19","v":0},{"$f":"IF(F20=0,\"\",'   ד. ציוד כללי'!N19)","v":""},{"$f":"'   ד. ציוד כללי'!O19","v":0}]
[{"$f":"'   ד. ציוד כללי'!C20","v":"מקרר 600 ליטר"},{"$f":"'   ד. ציוד כללי'!H20","v":0},{"$f":"'   ד. ציוד כללי'!I20","v":0},null,{"$f":"'   ד. ציוד כללי'!L20","v":0},{"$f":"'   ד. ציוד כללי'!M20","v":0},{"$f":"IF(F21=0,\"\",'   ד. ציוד כללי'!N20)","v":""},{"$f":"'   ד. ציוד כללי'!O20","v":0}]
[{"$f":"'   ד. ציוד כללי'!C21","v":"מתקן למים חמים/ קרים "},{"$f":"'   ד. ציוד כללי'!H21","v":0},{"$f":"'   ד. ציוד כללי'!I21","v":0},null,{"$f":"'   ד. ציוד כללי'!L21","v":0},{"$f":"'   ד. ציוד כללי'!M21","v":0},{"$f":"IF(F22=0,\"\",'   ד. ציוד כללי'!N21)","v":""},{"$f":"'   ד. ציוד כללי'!O21","v":0}]
[{"$f":"'   ד. ציוד כללי'!C22","v":"מדיח כלים "},{"$f":"'   ד. ציוד כללי'!H22","v":0},{"$f":"'   ד. ציוד כללי'!I22","v":0},null,{"$f":"'   ד. ציוד כללי'!L22","v":0},{"$f":"'   ד. ציוד כללי'!M22","v":0},{"$f":"IF(F23=0,\"\",'   ד. ציוד כללי'!N22)","v":""},{"$f":"'   ד. ציוד כללי'!O22","v":0}]
[{"$f":"'   ד. ציוד כללי'!C23","v":"מערבל מזון"},{"$f":"'   ד. ציוד כללי'!H23","v":0},{"$f":"'   ד. ציוד כללי'!I23","v":0},null,{"$f":"'   ד. ציוד כללי'!L23","v":0},{"$f":"'   ד. ציוד כללי'!M23","v":0},{"$f":"IF(F24=0,\"\",'   ד. ציוד כללי'!N23)","v":""},{"$f":"'   ד. ציוד כללי'!O23","v":0}]
[{"$f":"'   ד. ציוד כללי'!C24","v":"מעבד מזון"},{"$f":"'   ד. ציוד כללי'!H24","v":0},{"$f":"'   ד. ציוד כללי'!I24","v":0},null,{"$f":"'   ד. ציוד כללי'!L24","v":0},{"$f":"'   ד. ציוד כללי'!M24","v":0},{"$f":"IF(F25=0,\"\",'   ד. ציוד כללי'!N24)","v":""},{"$f":"'   ד. ציוד כללי'!O24","v":0}]
[{"$f":"'   ד. ציוד כללי'!C25","v":"תנור אפיה+ כיריים חשמלי"},{"$f":"'   ד. ציוד כללי'!H25","v":0},{"$f":"'   ד. ציוד כללי'!I25","v":0},null,{"$f":"'   ד. ציוד כללי'!L25","v":0},{"$f":"'   ד. ציוד כללי'!M25","v":0},{"$f":"IF(F26=0,\"\",'   ד. ציוד כללי'!N25)","v":""},{"$f":"'   ד. ציוד כללי'!O25","v":0}]
[{"$f":"'   ד. ציוד כללי'!C26","v":"כלי מטבח- תקציב כללי "},{"$f":"'   ד. ציוד כללי'!H26","v":0},{"$f":"'   ד. ציוד כללי'!I26","v":0},null,{"$f":"'   ד. ציוד כללי'!L26","v":0},{"$f":"'   ד. ציוד כללי'!M26","v":0},{"$f":"IF(F27=0,\"\",'   ד. ציוד כללי'!N26)","v":""},{"$f":"'   ד. ציוד כללי'!O26","v":0}]
[{"$f":"'   ד. ציוד כללי'!C28","v":"כספת (מתאימה לאחסון וטעינת טאבלטים)"},{"$f":"'   ד. ציוד כללי'!H28","v":0},{"$f":"'   ד. ציוד כללי'!I28","v":0},null,{"$f":"'   ד. ציוד כללי'!L28","v":0},{"$f":"'   ד. ציוד כללי'!M28","v":0},{"$f":"IF(F28=0,\"\",'   ד. ציוד כללי'!N28)","v":""},{"$f":"'   ד. ציוד כללי'!O28","v":0}]
[{"$f":"'   ד. ציוד כללי'!C29","v":"מחשב נייח כולל מערכת הפעלה, אופיס, מסך ומקלדת"},{"$f":"'   ד. ציוד כללי'!H29","v":0},{"$f":"'   ד. ציוד כללי'!I29","v":0},null,{"$f":"'   ד. ציוד כללי'!L29","v":0},{"$f":"'   ד. ציוד כללי'!M29","v":0},{"$f":"IF(F29=0,\"\",'   ד. ציוד כללי'!N29)","v":""},{"$f":"'   ד. ציוד כללי'!O29","v":0}]
[{"$f":"'   ד. ציוד כללי'!C30","v":"מחשב נייד כולל מערכת הפעלה, אופיס, מסך ומקלדת"},{"$f":"'   ד. ציוד כללי'!H30","v":0},{"$f":"'   ד. ציוד כללי'!I30","v":0},null,{"$f":"'   ד. ציוד כללי'!L30","v":0},{"$f":"'   ד. ציוד כללי'!M30","v":0},{"$f":"IF(F30=0,\"\",'   ד. ציוד כללי'!N30)","v":""},{"$f":"'   ד. ציוד כללי'!O30","v":0}]
[{"$f":"'   ד. ציוד כללי'!C31","v":"מדפסת משולבת "},{"$f":"'   ד. ציוד כללי'!H31","v":0},{"$f":"'   ד. ציוד כללי'!I31","v":0},null,{"$f":"'   ד. ציוד כללי'!L31","v":0},{"$f":"'   ד. ציוד כללי'!M31","v":0},{"$f":"IF(F31=0,\"\",'   ד. ציוד כללי'!N31)","v":""},{"$f":"'   ד. ציוד כללי'!O31","v":0}]
[{"$f":"'   ד. ציוד כללי'!C32","v":"ארון אחסון "},{"$f":"'   ד. ציוד כללי'!H32","v":0},{"$f":"'   ד. ציוד כללי'!I32","v":0},null,{"$f":"'   ד. ציוד כללי'!L32","v":0},{"$f":"'   ד. ציוד כללי'!M32","v":0},{"$f":"IF(F32=0,\"\",'   ד. ציוד כללי'!N32)","v":""},{"$f":"'   ד. ציוד כללי'!O32","v":0}]
[{"$f":"'   ד. ציוד כללי'!C33","v":"שולחן מחשב "},{"$f":"'   ד. ציוד כללי'!H33","v":0},{"$f":"'   ד. ציוד כללי'!I33","v":0},null,{"$f":"'   ד. ציוד כללי'!L33","v":0},{"$f":"'   ד. ציוד כללי'!M33","v":0},{"$f":"IF(F33=0,\"\",'   ד. ציוד כללי'!N33)","v":""},{"$f":"'   ד. ציוד כללי'!O33","v":0}]
[{"$f":"'   ד. ציוד כללי'!C34","v":"מגרסת נייר"},{"$f":"'   ד. ציוד כללי'!H34","v":0},{"$f":"'   ד. ציוד כללי'!I34","v":0},null,{"$f":"'   ד. ציוד כללי'!L34","v":0},{"$f":"'   ד. ציוד כללי'!M34","v":0},{"$f":"IF(F34=0,\"\",'   ד. ציוד כללי'!N34)","v":""},{"$f":"'   ד. ציוד כללי'!O34","v":0}]
[{"$f":"'   ד. ציוד כללי'!C35","v":"מחשב טאבלט"},{"$f":"'   ד. ציוד כללי'!H35","v":0},{"$f":"'   ד. ציוד כללי'!I35","v":0},null,{"$f":"'   ד. ציוד כללי'!L35","v":0},{"$f":"'   ד. ציוד כללי'!M35","v":0},{"$f":"IF(F35=0,\"\",'   ד. ציוד כללי'!N35)","v":""},{"$f":"'   ד. ציוד כללי'!O35","v":0}]
[{"$f":"'   ד. ציוד כללי'!C36","v":"כסא מחשב "},{"$f":"'   ד. ציוד כללי'!H36","v":0},{"$f":"'   ד. ציוד כללי'!I36","v":0},null,{"$f":"'   ד. ציוד כללי'!L36","v":0},{"$f":"'   ד. ציוד כללי'!M36","v":0},{"$f":"IF(F36=0,\"\",'   ד. ציוד כללי'!N36)","v":""},{"$f":"'   ד. ציוד כללי'!O36","v":0}]
[{"$f":"'   ד. ציוד כללי'!C38","v":"טלויזיה  55 אינץ' + מסך הגנה"},{"$f":"'   ד. ציוד כללי'!H38","v":0},{"$f":"'   ד. ציוד כללי'!I38","v":0},null,{"$f":"'   ד. ציוד כללי'!L38","v":0},{"$f":"'   ד. ציוד כללי'!M38","v":0},{"$f":"IF(F37=0,\"\",'   ד. ציוד כללי'!N38)","v":""},{"$f":"'   ד. ציוד כללי'!O38","v":0}]
[{"$f":"'   ד. ציוד כללי'!C39","v":"מתקן תליה לטלוויזיה"},{"$f":"'   ד. ציוד כללי'!H39","v":0},{"$f":"'   ד. ציוד כללי'!I39","v":0},null,{"$f":"'   ד. ציוד כללי'!L39","v":0},{"$f":"'   ד. ציוד כללי'!M39","v":0},{"$f":"IF(F38=0,\"\",'   ד. ציוד כללי'!N39)","v":""},{"$f":"'   ד. ציוד כללי'!O39","v":0}]
[{"$f":"'   ד. ציוד כללי'!C40","v":"ברקו "},{"$f":"'   ד. ציוד כללי'!H40","v":0},{"$f":"'   ד. ציוד כללי'!I40","v":0},null,{"$f":"'   ד. ציוד כללי'!L40","v":0},{"$f":"'   ד. ציוד כללי'!M40","v":0},{"$f":"IF(F39=0,\"\",'   ד. ציוד כללי'!N40)","v":""},{"$f":"'   ד. ציוד כללי'!O40","v":0}]
[{"$f":"'   ד. ציוד כללי'!C41","v":"מצלמה דיגיטלית "},{"$f":"'   ד. ציוד כללי'!H41","v":0},{"$f":"'   ד. ציוד כללי'!I41","v":0},null,{"$f":"'   ד. ציוד כללי'!L41","v":0},{"$f":"'   ד. ציוד כללי'!M41","v":0},{"$f":"IF(F40=0,\"\",'   ד. ציוד כללי'!N41)","v":""},{"$f":"'   ד. ציוד כללי'!O41","v":0}]
[{"$f":"'   ד. ציוד כללי'!C42","v":"משחקי חברה (תקציב כולל)"},{"$f":"'   ד. ציוד כללי'!H42","v":0},{"$f":"'   ד. ציוד כללי'!I42","v":0},null,{"$f":"'   ד. ציוד כללי'!L42","v":0},{"$f":"'   ד. ציוד כללי'!M42","v":0},{"$f":"IF(F41=0,\"\",'   ד. ציוד כללי'!N42)","v":""},{"$f":"'   ד. ציוד כללי'!O42","v":0}]
[{"$f":"'   ד. ציוד כללי'!C43","v":"קונסולת משחקים"},{"$f":"'   ד. ציוד כללי'!H43","v":0},{"$f":"'   ד. ציוד כללי'!I43","v":0},null,{"$f":"'   ד. ציוד כללי'!L43","v":0},{"$f":"'   ד. ציוד כללי'!M43","v":0},{"$f":"IF(F42=0,\"\",'   ד. ציוד כללי'!N43)","v":""},{"$f":"'   ד. ציוד כללי'!O43","v":0}]
[{"$f":"'   ד. ציוד כללי'!C44","v":"מערכת סטריאו "},{"$f":"'   ד. ציוד כללי'!H44","v":0},{"$f":"'   ד. ציוד כללי'!I44","v":0},null,{"$f":"'   ד. ציוד כללי'!L44","v":0},{"$f":"'   ד. ציוד כללי'!M44","v":0},{"$f":"IF(F43=0,\"\",'   ד. ציוד כללי'!N44)","v":""},{"$f":"'   ד. ציוד כללי'!O44","v":0}]
[{"$f":"'   ד. ציוד כללי'!C46","v":"סט ריהוט לגינה הכולל שולחן ושישה כסאות "},{"$f":"'   ד. ציוד כללי'!H46","v":0},{"$f":"'   ד. ציוד כללי'!I46","v":0},null,{"$f":"'   ד. ציוד כללי'!L46","v":0},{"$f":"'   ד. ציוד כללי'!M46","v":0},{"$f":"IF(F44=0,\"\",'   ד. ציוד כללי'!N46)","v":""},{"$f":"'   ד. ציוד כללי'!O46","v":0}]
[{"$f":"'   ד. ציוד כללי'!C47","v":"סוכך"},{"$f":"'   ד. ציוד כללי'!H47","v":0},{"$f":"'   ד. ציוד כללי'!I47","v":0},null,{"$f":"'   ד. ציוד כללי'!L47","v":0},{"$f":"'   ד. ציוד כללי'!M47","v":0},{"$f":"IF(F45=0,\"\",'   ד. ציוד כללי'!N47)","v":""},{"$f":"'   ד. ציוד כללי'!O47","v":0}]
[{"$f":"'   ד. ציוד כללי'!C48","v":"ספסל גינה "},{"$f":"'   ד. ציוד כללי'!H48","v":0},{"$f":"'   ד. ציוד כללי'!I48","v":0},null,{"$f":"'   ד. ציוד כללי'!L48","v":0},{"$f":"'   ד. ציוד כללי'!M48","v":0},{"$f":"IF(F46=0,\"\",'   ד. ציוד כללי'!N48)","v":""},{"$f":"'   ד. ציוד כללי'!O48","v":0}]
[{"$f":"'   ד. ציוד כללי'!C49","v":"נדנדה לחצר "},{"$f":"'   ד. ציוד כללי'!H49","v":0},{"$f":"'   ד. ציוד כללי'!I49","v":0},null,{"$f":"'   ד. ציוד כללי'!L49","v":0},{"$f":"'   ד. ציוד כללי'!M49","v":0},{"$f":"IF(F47=0,\"\",'   ד. ציוד כללי'!N49)","v":""},{"$f":"'   ד. ציוד כללי'!O49","v":0}]
[{"$f":"'   ד. ציוד כללי'!C50","v":"מחסן גינה "},{"$f":"'   ד. ציוד כללי'!H50","v":0},{"$f":"'   ד. ציוד כללי'!I50","v":0},null,{"$f":"'   ד. ציוד כללי'!L50","v":0},{"$f":"'   ד. ציוד כללי'!M50","v":0},{"$f":"IF(F48=0,\"\",'   ד. ציוד כללי'!N50)","v":""},{"$f":"'   ד. ציוד כללי'!O50","v":0}]
[{"$f":"'   ד. ציוד כללי'!C51","v":"פח זבל גינה "},{"$f":"'   ד. ציוד כללי'!H51","v":0},{"$f":"'   ד. ציוד כללי'!I51","v":0},null,{"$f":"'   ד. ציוד כללי'!L51","v":0},{"$f":"'   ד. ציוד כללי'!M51","v":0},{"$f":"IF(F49=0,\"\",'   ד. ציוד כללי'!N51)","v":""},{"$f":"'   ד. ציוד כללי'!O51","v":0}]
[{"$f":"'   ד. ציוד כללי'!C53","v":"מטף כיבוי אש 6 ק\"ג "},{"$f":"'   ד. ציוד כללי'!H53","v":0},{"$f":"'   ד. ציוד כללי'!I53","v":0},null,{"$f":"'   ד. ציוד כללי'!L53","v":0},{"$f":"'   ד. ציוד כללי'!M53","v":0},{"$f":"IF(F50=0,\"\",'   ד. ציוד כללי'!N53)","v":""},{"$f":"'   ד. ציוד כללי'!O53","v":0}]
[{"$f":"'   ד. ציוד כללי'!C54","v":"תיק עזרה ראשונה "},{"$f":"'   ד. ציוד כללי'!H54","v":0},{"$f":"'   ד. ציוד כללי'!I54","v":0},null,{"$f":"'   ד. ציוד כללי'!L54","v":0},{"$f":"'   ד. ציוד כללי'!M54","v":0},{"$f":"IF(F51=0,\"\",'   ד. ציוד כללי'!N54)","v":""},{"$f":"'   ד. ציוד כללי'!O54","v":0}]
[{"$f":"'   ד. ציוד כללי'!C55","v":"מערכת מצלמות אבטחה"},{"$f":"'   ד. ציוד כללי'!H55","v":0},{"$f":"'   ד. ציוד כללי'!I55","v":0},null,{"$f":"'   ד. ציוד כללי'!L55","v":0},{"$f":"'   ד. ציוד כללי'!M55","v":0},{"$f":"IF(F52=0,\"\",'   ד. ציוד כללי'!N55)","v":""},{"$f":"'   ד. ציוד כללי'!O55","v":0}]
[{"$f":"'   ד. ציוד כללי'!C56","v":"תאורת חירום "},{"$f":"'   ד. ציוד כללי'!H56","v":0},{"$f":"'   ד. ציוד כללי'!I56","v":0},null,{"$f":"'   ד. ציוד כללי'!L56","v":0},{"$f":"'   ד. ציוד כללי'!M56","v":0},{"$f":"IF(F53=0,\"\",'   ד. ציוד כללי'!N56)","v":""},{"$f":"'   ד. ציוד כללי'!O56","v":0}]
[{"$f":"'   ד. ציוד כללי'!C58","v":"עיצוב פנים"},{"$f":"'   ד. ציוד כללי'!H58","v":0},{"$f":"'   ד. ציוד כללי'!I58","v":0},null,{"$f":"'   ד. ציוד כללי'!L58","v":0},{"$f":"'   ד. ציוד כללי'!M58","v":0},{"$f":"IF(F54=0,\"\",'   ד. ציוד כללי'!N58)","v":""},{"$f":"'   ד. ציוד כללי'!O58","v":0}]
["סה\"כ ציוד כללי כולל מע\"מ",null,{"$f":"SUM(C9:C54)","v":0},null,{"$f":"A55","v":"סה\"כ ציוד כללי כולל מע\"מ"},null,null,0]
[{"$f":"'ב. תוכן עניינים'!C18","v":"טכנולוגיה מסייעת"},null,null,null,{"$f":"A56","v":"טכנולוגיה מסייעת"}]
[{"$f":"'ה. טכנולוגיה מסייעת'!C7","v":"שולחנות חשמליים מתכווננים למחשב "},{"$f":"'ה. טכנולוגיה מסייעת'!H7","v":0},{"$f":"'ה. טכנולוגיה מסייעת'!I7","v":0},null,{"$f":"'ה. טכנולוגיה מסייעת'!L7","v":0},{"$f":"'ה. טכנולוגיה מסייעת'!M7","v":0},{"$f":"IF(F57=0,\"\",'ה. טכנולוגיה מסייעת'!N7)","v":""},{"$f":"'ה. טכנולוגיה מסייעת'!O7","v":0}]
[{"$f":"'ה. טכנולוגיה מסייעת'!C8","v":"מקלדת ארגונומית "},{"$f":"'ה. טכנולוגיה מסייעת'!H8","v":0},{"$f":"'ה. טכנולוגיה מסייעת'!I8","v":0},null,{"$f":"'ה. טכנולוגיה מסייעת'!L8","v":0},{"$f":"'ה. טכנולוגיה מסייעת'!M8","v":0},{"$f":"IF(F58=0,\"\",'ה. טכנולוגיה מסייעת'!N8)","v":""},{"$f":"'ה. טכנולוגיה מסייעת'!O8","v":0}]
[{"$f":"'ה. טכנולוגיה מסייעת'!C9","v":"עכבר ארגונומי "},{"$f":"'ה. טכנולוגיה מסייעת'!H9","v":0},{"$f":"'ה. טכנולוגיה מסייעת'!I9","v":0},null,{"$f":"'ה. טכנולוגיה מסייעת'!L9","v":0},{"$f":"'ה. טכנולוגיה מסייעת'!M9","v":0},{"$f":"IF(F59=0,\"\",'ה. טכנולוגיה מסייעת'!N9)","v":""},{"$f":"'ה. טכנולוגיה מסייעת'!O9","v":0}]
[{"$f":"'ה. טכנולוגיה מסייעת'!C10","v":"כסא שירותים מתכוונן "},{"$f":"'ה. טכנולוגיה מסייעת'!H10","v":0},{"$f":"'ה. טכנולוגיה מסייעת'!I10","v":0},null,{"$f":"'ה. טכנולוגיה מסייעת'!L10","v":0},{"$f":"'ה. טכנולוגיה מסייעת'!M10","v":0},{"$f":"IF(F60=0,\"\",'ה. טכנולוגיה מסייעת'!N10)","v":""},{"$f":"'ה. טכנולוגיה מסייעת'!O10","v":0}]
["סה\"כ טכנולוגיה מסייעת כולל מע\"מ",null,{"$f":"SUM(C57:C60)","v":0},null,{"$f":"A61","v":"סה\"כ טכנולוגיה מסייעת כולל מע\"מ"},null,null,0,null,null,null,null,null,null,null,null,null,null,null,null,null,null,null,null,null,null,null,null,null,null,null,null,null,null,null,null,null,null,null,null,null,null,null,null,null,null,null,null,null,null,null,null,null,null,null,null,null,null,null,null,null,null,null,null,null,null,null,null,null,null,null,null,null,null,null,null,null,null,null,null,null,null,null,null,null,null,null,null,null,null,null,null,null,null,null,null,null,null,null,null,null,null,null,null,null,null,null,null,null,null,null,null,null,null,null,null,null,null,null,null,null,null,null,null,null,null,null,null,null,null,null,null,null,null,null,null,null,null,null,null,null,null,null,null,null,null,null,null,null,null,null,null,null,null,null,null,null,null,null,null,null,null,null,null,null,null,null,null,null,null,null,null,null,null,null,null,null,null,null,null,null,null,null,null,null,null,null,null,null,null,null,null,null,null,null,null,null,null,null,null,null,null,null,null,null,null,null,null,null,null,null,null,null,null,null,null,null,null,null,null,null,null,null,null,null,null,null,null,null,null,null,null,null,null,null,null,null,null,null,null,null,null,null,null,null,null,null,null,null,null,null,null,null,null,null,null,null,null,null,null,null,null,null,null,null,null,null,null,null,null,null,null,null,null,null,null,null,null,null,null,null,null,null,null,null,null,null,null,null,null,null,null,null,null,null,null,null,null,null,null,null,null,null,null,null,null,null,null,null,null,null,null,null,null,null,null,null,null,null,null,null,null,null,null,null,null,null,null,null,null,null,null,null,null,null,null,null,null,null,null,null,null,null,null,null,null,null,null,null,null,null,null,null,null,null,null,null,null,null,null,null,null,null,null,null,null,null,null,null,null,null,null,null,null,null,null,null,null,null,null,null,null,null,null,null,null,null,null,null,null,null,null,null,null,null,null,null,null,null,null,null,null,null,null,null,null,null,null,null,null,null,null,null,null,null,null,null,null,null,null,null,null,null,null,null,null,null,null,null,null,null,null,null,null,null,null,null,null,null,null,null,null,null,null,null,null,null,null,null,null,null,null,null,null,null,null,null,null,null,null,null,null,null,null,null,null,null,null,null,null,null,null,null,null,null,null,null,null,null,null,null,null,null,null,null,null,null,null,null,null,null,null,null,null,null,null,null,null,null,null,null,null,null,null,null,null,null,null,null,null,null,null,null,null,null,null,null,null,null,null,null,null,null,null,null,null,null,null,null,null,null,null,null,null,null,null,null,null,null,null,null,null,null,null,null,null,null,null,null,null,null,null,null,null,null,null,null,null,null,null,null,null,null,null,null,null,null,null,null,null,null,null,null,null,null,null,null,null,null,null,null,null,null,null,null,null,null,null,null,null,null,null,null,null,null,null,null,null,null,null,null,null,null,null,null,null,null,null,null,null,null,null,null,null,null,null,null,null,null,null,null,null,null,null,null,null,null,null,null,null,null,null,null,null,null,null,null,null,null,null,null,null,null,null,null,null,null,null,null,null,null,null,null,null,null,null,null,null,null,null,null,null,null,null,null,null,null,null,null,null,null,null,null,null,null,null,null,null,null,null,null,null,null,null,null,null,null,null,null,null,null,null,null,null,null,null,null,null,null,null,null,null,null,null,null,null,null,null,null,null,null,null,null,null,null,null,null,null,null,null,null,null,null,null,null,null,null,null,null,null,null,null,null,null,null,null,null,null,null,null,null,null,null,null,null,null,null,null,null,null,null,null,null,null,null,null,null,null,null,null,null,null,null,null,null,null,null,null,null,null,null,null,null,null,null,null,null,null,null,null,null,null,null,null,null,null,null,null,null,null,null,null,null,null,null,null,null,null,null,null,null,null,null,null,null,null,null,null,null,null,null,null,null,null,null,null,null,null,null,null,null,null,null,null,null,null,null,null,null,null,null,null,null,null,null,null,null,null,null,null,null,null,null,null,null,null,null,null,null,null,null,null,null,null,null,null,null,null,null,null,null,null,null,null,null,null,null,null,null,null,null,null,null,null,null,null,null,null,null,null,null,null,null,null,null,null,null,null,null,null,null,null,null,null,null,null,null,null,null,null,null,null,null,null,null,null,null,null,null,null,null,null,null,null,null,null,null,null,null,null,null,null,null,null,null,null,null,null,null,null,null,null,null,null,null,null,null,null,null,null,null,null,null,null,null,null,null,null,null,null,null,null,null,null,null,null,null,null,null,null,null,null,null,null,null,null,null,null,null,null,null,null,null,null,null,null,null,null,null,null,null,null,null,null,null,null,null,null,null,null,null,null,null,null,null,null,null,null,null,null,null,null,null,null,null,null,null,null,null,null,null,null,null,null,null,null,null,null,null,null,null,null,null,null,null,null,null,null,null,null,null,null,null,null,null,null,null,null,null,null,null,null,null,null,null,null,null,null,null,null,null,null,null,null,null,null,null,null,null,null,null,null,null,null,null,null,null,null,null,null,null,null,null,null,null,null,null,null,null,null,null,null,null,null,null,null,null,null,null,null,null,null,null,null,null,null,null,null,null,null,null,null,null,null,null,null,null,null,null,null,null,null,null,null,null,null,null,null,null,null,null,null,null,null,null,null,null,null,null,null,null,null,null,null,null,null,null,null,null,null,null,null,null,null,null,null,null,null,null,null,null,null,null,null,null,null,null,null,null,null,null,null,null,null,null,null,null,null,null,null,null,null,null,null,null,null,null,null,null,null,null,null,null,null,null,null,null,null,null,null,null,null,null,null,null,null,null,null,null,null,null,null,null,null,null,null,null,null,null,null,null,null,null,null,null,null,null,null,null,null,null,null,null,null,null,null,null,null,null,null,null,null,null,null,null,null,null,null,null,null,null,null,null,null,null,null,null,null,null,null,null,null,null,null,null,null,null,null,null,null,null,null,null,null,null,null,null,null,null,null,null,null,null,null,null,null,null,null,null,null,null,null,null,null,null,null,null,null,null,null,null,null,null,null,null,null,null,null,null,null,null,null,null,null,null,null,null,null,null,null,null,null,null,null,null,null,null,null,null,null,null,null,null,null,null,null,null,null,null,null,null,null,null,null,null,null,null,null,null,null,null,null,null,null,null,null,null,null,null,null,null,null,null,null,null,null,null,null,null,null,null,null,null,null,null,null,null,null,null,null,null,null,null,null,null,null,null,null,null,null,null,null,null,null,null,null,null,null,null,null,null,null,null,null,null,null,null,null,null,null,null,null,null,null,null,null,null,null,null,null,null,null,null,null,null,null,null,null,null,null,null,null,null,null,null,null,null,null,null,null,null,null,null,null,null,null,null,null,null,null,null,null,null,null,null,null,null,null,null,null,null,null,null,null,null,null,null,null,null,null,null,null,null,null,null,null,null,null,null,null,null,null,null,null,null,null,null,null,null,null,null,null,null,null,null,null,null,null,null,null,null,null,null,null,null,null,null,null,null,null,null,null,null,null,null,null,null,null,null,null,null,null,null,null,null,null,null,null,null,null,null,null,null,null,null,null,null,null,null,null,null,null,null,null,null,null,null,null,null,null,null,null,null,null,null,null,null,null,null,null,null,null,null,null,null,null,null,null,null,null,null,null,null,null,null,null,null,null,null,null,null,null,null,null,null,null,null,null,null,null,null,null,null,null,null,null,null,null,null,null,null,null,null,null,null,null,null,null,null,null,null,null,null,null,null,null,null,null,null,null,null,null,null,null,null,null,null,null,null,null,null,null,null,null,null,null,null,null,null,null,null,null,null,null,null,null,null,null,null,null,null,null,null,null,null,null,null,null,null,null,null,null,null,null,null,null,null,null,null,null,null,null,null,null,null,null,null,null,null,null,null,null,null,null,null,null,null,null,null,null,null,null,null,null,null,null,null,null,null,null,null,null,null,null,null,null,null,null,null,null,null,null,null,null,null,null,null,null,null,null,null,null,null,null,null,null,null,null,null,null,null,null,null,null,null,null,null,null,null,null,null,null,null,null,null,null,null,null,null,null,null,null,null,null,null,null,null,null,null,null,null,null,null,null,null,null,null,null,null,null,null,null,null,null,null,null,null,null,null,null,null,null,null,null,null,null,null,null,null,null,null,null,null,null,null,null,null,null,null,null,null,null,null,null,null,null,null,null,null,null,null,null,null,null,null,null,null,null,null,null,null,null,null,null,null,null,null,null,null,null,null,null,null,null,null,null,null,null,null,null,null,null,null,null,null,null,null,null,null,null,null,null,null,null,null,null,null,null,null,null,null,null,null,null,null,null,null,null,null,null,null,null,null,null,null,null,null,null,null,null,null,null,null,null,null,null,null,null,null,null,null,null,null,null,null,null,null,null,null,null,null,null,null,null,null,null,null,null,null,null,null,null,null,null,null,null,null,null,null,null,null,null,null,null,null,null,null,null,null,null,null,null,null,null,null,null,null,null,null,null,null,null,null,null,null,null,null,null,null,null,null,null,null,null,null,null,null,null,null,null,null,null,null,null,null,null,null,null,null,null,null,null,null,null,null,null,null,null,null,null,null,null,null,null,null,null,null,null,null,null,null,null,null,null,null,null,null,null,null,null,null,null,null,null,null,null,null,null,null,null,null,null,null,null,null,null,null,null,null,null,null,null,null,null,null,null,null,null,null,null,null,null,null,null,null,null,null,null,null,null,null,null,null,null,null,null,null,null,null,null,null,null,null,null,null,null,null,null,null,null,null,null,null,null,null,null,null,null,null,null,null,null,null,null,null,null,null,null,null,null,null,null,null,null,null,null,null,null,null,null,null,null,null,null,null,null,null,null,null,null,null,null,null,null,null,null,null,null,null,null,null,null,null,null,null,null,null,null,null,null,null,null,null,null,null,null,null,null,null,null,null,null,null,null,null,null,null,null,null,null,null,null,null,null,null,null,null,null,null,null,null,null,null,null,null,null,null,null,null,null,null,null,null,null,null,null,null,null,null,null,null,null,null,null,null,null,null,null,null,null,null,null,null,null,null,null,null,null,null,null,null,null,null,null,null,null,null,null,null,null,null,null,null,null,null,null,null,null,null,null,null,null,null,null,null,null,null,null,null,null,null,null,null,null,null,null,null,null,null,null,null,null,null,null,null,null,null,null,null,null,null,null,null,null,null,null,null,null,null,null,null,null,null,null,null,null,null,null,null,null,null,null,null,null,null,null,null,null,null,null,null,null,null,null,null,null,null,null,null,null,null,null,null,null,null,null,null,null,null,null,null,null,null,null,null,null,null,null,null,null,null,null,null,null,null,null,null,null,null,null,null,null,null,null,null,null,null,null,null,null,null,null,null,null,null,null,null,null,null,null,null,null,null,null,null,null,null,null,null,null,null,null,null,null,null,null,null,null,null,null,null,null,null,null,null,null,null,null,null,null,null,null,null,null,null,null,null,null,null,null,null,null,null,null,null,null,null,null,null,null,null,null,null,null,null,null,null,null,null,null,null,null,null,null,null,null,null,null,null,null,null,null,null,null,null,null,null,null,null,null,null,null,null,null,null,null,null,null,null,null,null,null,null,null,null,null,null,null,null,null,null,null,null,null,null,null,null,null,null,null,null,null,null,null,null,null,null,null,null,null,null,null,null,null,null,null,null,null,null,null,null,null,null,null,null,null,null,null,null,null,null,null,null,null,null,null,null,null,null,null,null,null,null,null,null,null,null,null,null,null,null,null,null,null,null,null,null,null,null,null,null,null,null,null,null,null,null,null,null,null,null,null,null,null,null,null,null,null,null,null,null,null,null,null,null,null,null,null,null,null,null,null,null,null,null,null,null,null,null,null,null,null,null,null,null,null,null,null,null,null,null,null,null,null,null,null,null,null,null,null,null,null,null,null,null,null,null,null,null,null,null,null,null,null,null,null,null,null,null,null,null,null,null,null,null,null,null,null,null,null,null,null,null,null,null,null,null,null,null,null,null,null,null,null,null,null,null,null,null,null,null,null,null,null,null,null,null,null,null,null,null,null,null,null,null,null,null,null,null,null,null,null,null,null,null,null,null,null,null,null,null,null,null,null,null,null,null,null,null,null,null,null,null,null,null,null,null,null,null,null,null,null,null,null,null,null,null,null,null,null,null,null,null,null,null,null,null,null,null,null,null,null,null,null,null,null,null,null,null,null,null,null,null,null,null,null,null,null,null,null,null,null,null,null,null,null,null,null,null,null,null,null,null,null,null,null,null,null,null,null,null,null,null,null,null,null,null,null,null,null,null,null,null,null,null,null,null,null,null,null,null,null,null,null,null,null,null,null,null,null,null,null,null,null,null,null,null,null,null,null,null,null,null,null,null,null,null,null,null,null,null,null,null,null,null,null,null,null,null,null,null,null,null,null,null,null,null,null,null,null,null,null,null,null,null,null,null,null,null,null,null,null,null,null,null,null,null,null,null,null,null,null,null,null,null,null,null,null,null,null,null,null,null,null,null,null,null,null,null,null,null,null,null,null,null,null,null,null,null,null,null,null,null,null,null,null,null,null,null,null,null,null,null,null,null,null,null,null,null,null,null,null,null,null,null,null,null,null,null,null,null,null,null,null,null,null,null,null,null,null,null,null,null,null,null,null,null,null,null,null,null,null,null,null,null,null,null,null,null,null,null,null,null,null,null,null,null,null,null,null,null,null,null,null,null,null,null,null,null,null,null,null,null,null,null,null,null,null,null,null,null,null,null,null,null,null,null,null,null,null,null,null,null,null,null,null,null,null,null,null,null,null,null,null,null,null,null,null,null,null,null,null,null,null,null,null,null,null,null,null,null,null,null,null,null,null,null,null,null,null,null,null,null,null,null,null,null,null,null,null,null,null,null,null,null,null,null,null,null,null,null,null,null,null,null,null,null,null,null,null,null,null,null,null,null,null,null,null,null,null,null,null,null,null,null,null,null,null,null,null,null,null,null,null,null,null,null,null,null,null,null,null,null,null,null,null,null,null,null,null,null,null,null,null,null,null,null,null,null,null,null,null,null,null,null,null,null,null,null,null,null,null,null,null,null,null,null,null,null,null,null,null,null,null,null,null,null,null,null,null,null,null,null,null,null,null,null,null,null,null,null,null,null,null,null,null,null,null,null,null,null,null,null,null,null,null,null,null,null,null,null,null,null,null,null,null,null,null,null,null,null,null,null,null,null,null,null,null,null,null,null,null,null,null,null,null,null,null,null,null,null,null,null,null,null,null,null,null,null,null,null,null,null,null,null,null,null,null,null,null,null,null,null,null,null,null,null,null,null,null,null,null,null,null,null,null,null,null,null,null,null,null,null,null,null,null,null,null,null,null,null,null,null,null,null,null,null,null,null,null,null,null,null,null,null,null,null,null,null,null,null,null,null,null,null,null,null,null,null,null,null,null,null,null,null,null,null,null,null,null,null,null,null,null,null,null,null,null,null,null,null,null,null,null,null,null,null,null,null,null,null,null,null,null,null,null,null,null,null,null,null,null,null,null,null,null,null,null,null,null,null,null,null,null,null,null,null,null,null,null,null,null,null,null,null,null,null,null,null,null,null,null,null,null,null,null,null,null,null,null,null,null,null,null,null,null,null,null,null,null,null,null,null,null,null,null,null,null,null,null,null,null,null,null,null,null,null,null,null,null,null,null,null,null,null,null,null,null,null,null,null,null,null,null,null,null,null,null,null,null,null,null,null,null,null,null,null,null,null,null,null,null,null,null,null,null,null,null,null,null,null,null,null,null,null,null,null,null,null,null,null,null,null,null,null,null,null,null,null,null,null,null,null,null,null,null,null,null,null,null,null,null,null,null,null,null,null,null,null,null,null,null,null,null,null,null,null,null,null,null,null,null,null,null,null,null,null,null,null,null,null,null,null,null,null,null,null,null,null,null,null,null,null,null,null,null,null,null,null,null,null,null,null,null,null,null,null,null,null,null,null,null,null,null,null,null,null,null,null,null,null,null,null,null,null,null,null,null,null,null,null,null,null,null,null,null,null,null,null,null,null,null,null,null,null,null,null,null,null,null,null,null,null,null,null,null,null,null,null,null,null,null,null,null,null,null,null,null,null,null,null,null,null,null,null,null,null,null,null,null,null,null,null,null,null,null,null,null,null,null,null,null,null,null,null,null,null,null,null,null,null,null,null,null,null,null,null,null,null,null,null,null,null,null,null,null,null,null,null,null,null,null,null,null,null,null,null,null,null,null,null,null,null,null,null,null,null,null,null,null,null,null,null,null,null,null,null,null,null,null,null,null,null,null,null,null,null,null,null,null,null,null,null,null,null,null,null,null,null,null,null,null,null,null,null,null,null,null,null,null,null,null,null,null,null,null,null,null,null,null,null,null,null,null,null,null,null,null,null,null,null,null,null,null,null,null,null,null,null,null,null,null,null,null,null,null,null,null,null,null,null,null,null,null,null,null,null,null,null,null,null,null,null,null,null,null,null,null,null,null,null,null,null,null,null,null,null,null,null,null,null,null,null,null,null,null,null,null,null,null,null,null,null,null,null,null,null,null,null,null,null,null,null,null,null,null,null,null,null,null,null,null,null,null,null,null,null,null,null,null,null,null,null,null,null,null,null,null,null,null,null,null,null,null,null,null,null,null,null,null,null,null,null,null,null,null,null,null,null,null,null,null,null,null,null,null,null,null,null,null,null,null,null,null,null,null,null,null,null,null,null,null,null,null,null,null,null,null,null,null,null,null,null,null,null,null,null,null,null,null,null,null,null,null,null,null,null,null,null,null,null,null,null,null,null,null,null,null,null,null,null,null,null,null,null,null,null,null,null,null,null,null,null,null,null,null,null,null,null,null,null,null,null,null,null,null,null,null,null,null,null,null,null,null,null,null,null,null,null,null,null,null,null,null,null,null,null,null,null,null,null,null,null,null,null,null,null,null,null,null,null,null,null,null,null,null,null,null,null,null,null,null,null,null,null,null,null,null,null,null,null,null,null,null,null,null,null,null,null,null,null,null,null,null,null,null,null,null,null,null,null,null,null,null,null,null,null,null,null,null,null,null,null,null,null,null,null,null,null,null,null,null,null,null,null,null,null,null,null,null,null,null,null,null,null,null,null,null,null,null,null,null,null,null,null,null,null,null,null,null,null,null,null,null,null,null,null,null,null,null,null,null,null,null,null,null,null,null,null,null,null,null,null,null,null,null,null,null,null,null,null,null,null,null,null,null,null,null,null,null,null,null,null,null,null,null,null,null,null,null,null,null,null,null,null,null,null,null,null,null,null,null,null,null,null,null,null,null,null,null,null,null,null,null,null,null,null,null,null,null,null,null,null,null,null,null,null,null,null,null,null,null,null,null,null,null,null,null,null,null,null,null,null,null,null,null,null,null,null,null,null,null,null,null,null,null,null,null,null,null,null,null,null,null,null,null,null,null,null,null,null,null,null,null,null,null,null,null,null,null,null,null,null,null,null,null,null,null,null,null,null,null,null,null,null,null,null,null,null,null,null,null,null,null,null,null,null,null,null,null,null,null,null,null,null,null,null,null,null,null,null,null,null,null,null,null,null,null,null,null,null,null,null,null,null,null,null,null,null,null,null,null,null,null,null,null,null,null,null,null,null,null,null,null,null,null,null,null,null,null,null,null,null,null,null,null,null,null,null,null,null,null,null,null,null,null,null,null,null,null,null,null,null,null,null,null,null,null,null,null,null,null,null,null,null,null,null,null,null,null,null,null,null,null,null,null,null,null,null,null,null,null,null,null,null,null,null,null,null,null,null,null,null,null,null,null,null,null,null,null,null,null,null,null,null,null,null,null,null,null,null,null,null,null,null,null,null,null,null,null,null,null,null,null,null,null,null,null,null,null,null,null,null,null,null,null,null,null,null,null,null,null,null,null,null,null,null,null,null,null,null,null,null,null,null,null,null,null,null,null,null,null,null,null,null,null,null,null,null,null,null,null,null,null,null,null,null,null,null,null,null,null,null,null,null,null,null,null,null,null,null,null,null,null,null,null,null,null,null,null,null,null,null,null,null,null,null,null,null,null,null,null,null,null,null,null,null,null,null,null,null,null,null,null,null,null,null,null,null,null,null,null,null,null,null,null,null,null,null,null,null,null,null,null,null,null,null,null,null,null,null,null,null,null,null,null,null,null,null,null,null,null,null,null,null,null,null,null,null,null,null,null,null,null,null,null,null,null,null,null,null,null,null,null,null,null,null,null,null,null,null,null,null,null,null,null,null,null,null,null,null,null,null,null,null,null,null,null,null,null,null,null,null,null,null,null,null,null,null,null,null,null,null,null,null,null,null,null,null,null,null,null,null,null,null,null,null,null,null,null,null,null,null,null,null,null,null,null,null,null,null,null,null,null,null,null,null,null,null,null,null,null,null,null,null,null,null,null,null,null,null,null,null,null,null,null,null,null,null,null,null,null,null,null,null,null,null,null,null,null,null,null,null,null,null,null,null,null,null,null,null,null,null,null,null,null,null,null,null,null,null,null,null,null,null,null,null,null,null,null,null,null,null,null,null,null,null,null,null,null,null,null,null,null,null,null,null,null,null,null,null,null,null,null,null,null,null,null,null,null,null,null,null,null,null,null,null,null,null,null,null,null,null,null,null,null,null,null,null,null,null,null,null,null,null,null,null,null,null,null,null,null,null,null,null,null,null,null,null,null,null,null,null,null,null,null,null,null,null,null,null,null,null,null,null,null,null,null,null,null,null,null,null,null,null,null,null,null,null,null,null,null,null,null,null,null,null,null,null,null,null,null,null,null,null,null,null,null,null,null,null,null,null,null,null,null,null,null,null,null,null,null,null,null,null,null,null,null,null,null,null,null,null,null,null,null,null,null,null,null,null,null,null,null,null,null,null,null,null,null,null,null,null,null,null,null,null,null,null,null,null,null,null,null,null,null,null,null,null,null,null,null,null,null,null,null,null,null,null,null,null,null,null,null,null,null,null,null,null,null,null,null,null,null,null,null,null,null,null,null,null,null,null,null,null,null,null,null,null,null,null,null,null,null,null,null,null,null,null,null,null,null,null,null,null,null,null,null,null,null,null,null,null,null,null,null,null,null,null,null,null,null,null,null,null,null,null,null,null,null,null,null,null,null,null,null,null,null,null,null,null,null,null,null,null,null,null,null,null,null,null,null,null,null,null,null,null,null,null,null,null,null,null,null,null,null,null,null,null,null,null,null,null,null,null,null,null,null,null,null,null,null,null,null,null,null,null,null,null,null,null,null,null,null,null,null,null,null,null,null,null,null,null,null,null,null,null,null,null,null,null,null,null,null,null,null,null,null,null,null,null,null,null,null,null,null,null,null,null,null,null,null,null,null,null,null,null,null,null,null,null,null,null,null,null,null,null,null,null,null,null,null,null,null,null,null,null,null,null,null,null,null,null,null,null,null,null,null,null,null,null,null,null,null,null,null,null,null,null,null,null,null,null,null,null,null,null,null,null,null,null,null,null,null,null,null,null,null,null,null,null,null,null,null,null,null,null,null,null,null,null,null,null,null,null,null,null,null,null,null,null,null,null,null,null,null,null,null,null,null,null,null,null,null,null,null,null,null,null,null,null,null,null,null,null,null,null,null,null,null,null,null,null,null,null,null,null,null,null,null,null,null,null,null,null,null,null,null,null,null,null,null,null,null,null,null,null,null,null,null,null,null,null,null,null,null,null,null,null,null,null,null,null,null,null,null,null,null,null,null,null,null,null,null,null,null,null,null,null,null,null,null,null,null,null,null,null,null,null,null,null,null,null,null,null,null,null,null,null,null,null,null,null,null,null,null,null,null,null,null,null,null,null,null,null,null,null,null,null,null,null,null,null,null,null,null,null,null,null,null,null,null,null,null,null,null,null,null,null,null,null,null,null,null,null,null,null,null,null,null,null,null,null,null,null,null,null,null,null,null,null,null,null,null,null,null,null,null,null,null,null,null,null,null,null,null,null,null,null,null,null,null,null,null,null,null,null,null,null,null,null,null,null,null,null,null,null,null,null,null,null,null,null,null,null,null,null,null,null,null,null,null,null,null,null,null,null,null,null,null,null,null,null,null,null,null,null,null,null,null,null,null,null,null,null,null,null,null,null,null,null,null,null,null,null,null,null,null,null,null,null,null,null,null,null,null,null,null,null,null,null,null,null,null,null,null,null,null,null,null,null,null,null,null,null,null,null,null,null,null,null,null,null,null,null,null,null,null,null,null,null,null,null,null,null,null,null,null,null,null,null,null,null,null,null,null,null,null,null,null,null,null,null,null,null,null,null,null,null,null,null,null,null,null,null,null,null,null,null,null,null,null,null,null,null,null,null,null,null,null,null,null,null,null,null,null,null,null,null,null,null,null,null,null,null,null,null,null,null,null,null,null,null,null,null,null,null,null,null,null,null,null,null,null,null,null,null,null,null,null,null,null,null,null,null,null,null,null,null,null,null,null,null,null,null,null,null,null,null,null,null,null,null,null,null,null,null,null,null,null,null,null,null,null,null,null,null,null,null,null,null,null,null,null,null,null,null,null,null,null,null,null,null,null,null,null,null,null,null,null,null,null,null,null,null,null,null,null,null,null,null,null,null,null,null,null,null,null,null,null,null,null,null,null,null,null,null,null,null,null,null,null,null,null,null,null,null,null,null,null,null,null,null,null,null,null,null,null,null,null,null,null,null,null,null,null,null,null,null,null,null,null,null,null,null,null,null,null,null,null,null,null,null,null,null,null,null,null,null,null,null,null,null,null,null,null,null,null,null,null,null,null,null,null,null,null,null,null,null,null,null,null,null,null,null,null,null,null,null,null,null,null,null,null,null,null,null,null,null,null,null,null,null,null,null,null,null,null,null,null,null,null,null,null,null,null,null,null,null,null,null,null,null,null,null,null,null,null,null,null,null,null,null,null,null,null,null,null,null,null,null,null,null,null,null,null,null,null,null,null,null,null,null,null,null,null,null,null,null,null,null,null,null,null,null,null,null,null,null,null,null,null,null,null,null,null,null,null,null,null,null,null,null,null,null,null,null,null,null,null,null,null,null,null,null,null,null,null,null,null,null,null,null,null,null,null,null,null,null,null,null,null,null,null,null,null,null,null,null,null,null,null,null,null,null,null,null,null,null,null,null,null,null,null,null,null,null,null,null,null,null,null,null,null,null,null,null,null,null,null,null,null,null,null,null,null,null,null,null,null,null,null,null,null,null,null,null,null,null,null,null,null,null,null,null,null,null,null,null,null,null,null,null,null,null,null,null,null,null,null,null,null,null,null,null,null,null,null,null,null,null,null,null,null,null,null,null,null,null,null,null,null,null,null,null,null,null,null,null,null,null,null,null,null,null,null,null,null,null,null,null,null,null,null,null,null,null,null,null,null,null,null,null,null,null,null,null,null,null,null,null,null,null,null,null,null,null,null,null,null,null,null,null,null,null,null,null,null,null,null,null,null,null,null,null,null,null,null,null,null,null,null,null,null,null,null,null,null,null,null,null,null,null,null,null,null,null,null,null,null,null,null,null,null,null,null,null,null,null,null,null,null,null,null,null,null,null,null,null,null,null,null,null,null,null,null,null,null,null,null,null,null,null,null,null,null,null,null,null,null,null,null,null,null,null,null,null,null,null,null,null,null,null,null,null,null,null,null,null,null,null,null,null,null,null,null,null,null,null,null,null,null,null,null,null,null,null,null,null,null,null,null,null,null,null,null,null,null,null,null,null,null,null,null,null,null,null,null,null,null,null,null,null,null,null,null,null,null,null,null,null,null,null,null,null,null,null,null,null,null,null,null,null,null,null,null,null,null,null,null,null,null,null,null,null,null,null,null,null,null,null,null,null,null,null,null,null,null,null,null,null,null,null,null,null,null,null,null,null,null,null,null,null,null,null,null,null,null,null,null,null,null,null,null,null,null,null,null,null,null,null,null,null,null,null,null,null,null,null,null,null,null,null,null,null,null,null,null,null,null,null,null,null,null,null,null,null,null,null,null,null,null,null,null,null,null,null,null,null,null,null,null,null,null,null,null,null,null,null,null,null,null,null,null,null,null,null,null,null,null,null,null,null,null,null,null,null,null,null,null,null,null,null,null,null,null,null,null,null,null,null,null,null,null,null,null,null,null,null,null,null,null,null,null,null,null,null,null,null,null,null,null,null,null,null,null,null,null,null,null,null,null,null,null,null,null,null,null,null,null,null,null,null,null,null,null,null,null,null,null,null,null,null,null,null,null,null,null,null,null,null,null,null,null,null,null,null,null,null,null,null,null,null,null,null,null,null,null,null,null,null,null,null,null,null,null,null,null,null,null,null,null,null,null,null,null,null,null,null,null,null,null,null,null,null,null,null,null,null,null,null,null,null,null,null,null,null,null,null,null,null,null,null,null,null,null,null,null,null,null,null,null,null,null,null,null,null,null,null,null,null,null,null,null,null,null,null,null,null,null,null,null,null,null,null,null,null,null,null,null,null,null,null,null,null,null,null,null,null,null,null,null,null,null,null,null,null,null,null,null,null,null,null,null,null,null,null,null,null,null,null,null,null,null,null,null,null,null,null,null,null,null,null,null,null,null,null,null,null,null,null,null,null,null,null,null,null,null,null,null,null,null,null,null,null,null,null,null,null,null,null,null,null,null,null,null,null,null,null,null,null,null,null,null,null,null,null,null,null,null,null,null,null,null,null,null,null,null,null,null,null,null,null,null,null,null,null,null,null,null,null,null,null,null,null,null,null,null,null,null,null,null,null,null,null,null,null,null,null,null,null,null,null,null,null,null,null,null,null,null,null,null,null,null,null,null,null,null,null,null,null,null,null,null,null,null,null,null,null,null,null,null,null,null,null,null,null,null,null,null,null,null,null,null,null,null,null,null,null,null,null,null,null,null,null,null,null,null,null,null,null,null,null,null,null,null,null,null,null,null,null,null,null,null,null,null,null,null,null,null,null,null,null,null,null,null,null,null,null,null,null,null,null,null,null,null,null,null,null,null,null,null,null,null,null,null,null,null,null,null,null,null,null,null,null,null,null,null,null,null,null,null,null,null,null,null,null,null,null,null,null,null,null,null,null,null,null,null,null,null,null,null,null,null,null,null,null,null,null,null,null,null,null,null,null,null,null,null,null,null,null,null,null,null,null,null,null,null,null,null,null,null,null,null,null,null,null,null,null,null,null,null,null,null,null,null,null,null,null,null,null,null,null,null,null,null,null,null,null,null,null,null,null,null,null,null,null,null,null,null,null,null,null,null,null,null,null,null,null,null,null,null,null,null,null,null,null,null,null,null,null,null,null,null,null,null,null,null,null,null,null,null,null,null,null,null,null,null,null,null,null,null,null,null,null,null,null,null,null,null,null,null,null,null,null,null,null,null,null,null,null,null,null,null,null,null,null,null,null,null,null,null,null,null,null,null,null,null,null,null,null,null,null,null,null,null,null,null,null,null,null,null,null,null,null,null,null,null,null,null,null,null,null,null,null,null,null,null,null,null,null,null,null,null,null,null,null,null,null,null,null,null,null,null,null,null,null,null,null,null,null,null,null,null,null,null,null,null,null,null,null,null,null,null,null,null,null,null,null,null,null,null,null,null,null,null,null,null,null,null,null,null,null,null,null,null,null,null,null,null,null,null,null,null,null,null,null,null,null,null,null,null,null,null,null,null,null,null,null,null,null,null,null,null,null,null,null,null,null,null,null,null,null,null,null,null,null,null,null,null,null,null,null,null,null,null,null,null,null,null,null,null,null,null,null,null,null,null,null,null,null,null,null,null,null,null,null,null,null,null,null,null,null,null,null,null,null,null,null,null,null,null,null,null,null,null,null,null,null,null,null,null,null,null,null,null,null,null,null,null,null,null,null,null,null,null,null,null,null,null,null,null,null,null,null,null,null,null,null,null,null,null,null,null,null,null,null,null,null,null,null,null,null,null,null,null,null,null,null,null,null,null,null,null,null,null,null,null,null,null,null,null,null,null,null,null,null,null,null,null,null,null,null,null,null,null,null,null,null,null,null,null,null,null,null,null,null,null,null,null,null,null,null,null,null,null,null,null,null,null,null,null,null,null,null,null,null,null,null,null,null,null,null,null,null,null,null,null,null,null,null,null,null,null,null,null,null,null,null,null,null,null,null,null,null,null,null,null,null,null,null,null,null,null,null,null,null,null,null,null,null,null,null,null,null,null,null,null,null,null,null,null,null,null,null,null,null,null,null,null,null,null,null,null,null,null,null,null,null,null,null,null,null,null,null,null,null,null,null,null,null,null,null,null,null,null,null,null,null,null,null,null,null,null,null,null,null,null,null,null,null,null,null,null,null,null,null,null,null,null,null,null,null,null,null,null,null,null,null,null,null,null,null,null,null,null,null,null,null,null,null,null,null,null,null,null,null,null,null,null,null,null,null,null,null,null,null,null,null,null,null,null,null,null,null,null,null,null,null,null,null,null,null,null,null,null,null,null,null,null,null,null,null,null,null,null,null,null,null,null,null,null,null,null,null,null,null,null,null,null,null,null,null,null,null,null,null,null,null,null,null,null,null,null,null,null,null,null,null,null,null,null,null,null,null,null,null,null,null,null,null,null,null,null,null,null,null,null,null,null,null,null,null,null,null,null,null,null,null,null,null,null,null,null,null,null,null,null,null,null,null,null,null,null,null,null,null,null,null,null,null,null,null,null,null,null,null,null,null,null,null,null,null,null,null,null,null,null,null,null,null,null,null,null,null,null,null,null,null,null,null,null,null,null,null,null,null,null,null,null,null,null,null,null,null,null,null,null,null,null,null,null,null,null,null,null,null,null,null,null,null,null,null,null,null,null,null,null,null,null,null,null,null,null,null,null,null,null,null,null,null,null,null,null,null,null,null,null,null,null,null,null,null,null,null,null,null,null,null,null,null,null,null,null,null,null,null,null,null,null,null,null,null,null,null,null,null,null,null,null,null,null,null,null,null,null,null,null,null,null,null,null,null,null,null,null,null,null,null,null,null,null,null,null,null,null,null,null,null,null,null,null,null,null,null,null,null,null,null,null,null,null,null,null,null,null,null,null,null,null,null,null,null,null,null,null,null,null,null,null,null,null,null,null,null,null,null,null,null,null,null,null,null,null,null,null,null,null,null,null,null,null,null,null,null,null,null,null,null,null,null,null,null,null,null,null,null,null,null,null,null,null,null,null,null,null,null,null,null,null,null,null,null,null,null,null,null,null,null,null,null,null,null,null,null,null,null,null,null,null,null,null,null,null,null,null,null,null,null,null,null,null,null,null,null,null,null,null,null,null,null,null,null,null,null,null,null,null,null,null,null,null,null,null,null,null,null,null,null,null,null,null,null,null,null,null,null,null,null,null,null,null,null,null,null,null,null,null,null,null,null,null,null,null,null,null,null,null,null,null,null,null,null,null,null,null,null,null,null,null,null,null,null,null,null,null,null,null,null,null,null,null,null,null,null,null,null,null,null,null,null,null,null,null,null,null,null,null,null,null,null,null,null,null,null,null,null,null,null,null,null,null,null,null,null,null,null,null,null,null,null,null,null,null,null,null,null,null,null,null,null,null,null,null,null,null,null,null,null,null,null,null,null,null,null,null,null,null,null,null,null,null,null,null,null,null,null,null,null,null,null,null,null,null,null,null,null,null,null,null,null,null,null,null,null,null,null,null,null,null,null,null,null,null,null,null,null,null,null,null,null,null,null,null,null,null,null,null,null,null,null,null,null,null,null,null,null,null,null,null,null,null,null,null,null,null,null,null,null,null,null,null,null,null,null,null,null,null,null,null,null,null,null,null,null,null,null,null,null,null,null,null,null,null,null,null,null,null,null,null,null,null,null,null,null,null,null,null,null,null,null,null,null,null,null,null,null,null,null,null,null,null,null,null,null,null,null,null,null,null,null,null,null,null,null,null,null,null,null,null,null,null,null,null,null,null,null,null,null,null,null,null,null,null,null,null,null,null,null,null,null,null,null,null,null,null,null,null,null,null,null,null,null,null,null,null,null,null,null,null,null,null,null,null,null,null,null,null,null,null,null,null,null,null,null,null,null,null,null,null,null,null,null,null,null,null,null,null,null,null,null,null,null,null,null,null,null,null,null,null,null,null,null,null,null,null,null,null,null,null,null,null,null,null,null,null,null,null,null,null,null,null,null,null,null,null,null,null,null,null,null,null,null,null,null,null,null,null,null,null,null,null,null,null,null,null,null,null,null,null,null,null,null,null,null,null,null,null,null,null,null,null,null,null,null,null,null,null,null,null,null,null,null,null,null,null,null,null,null,null,null,null,null,null,null,null,null,null,null,null,null,null,null,null,null,null,null,null,null,null,null,null,null,null,null,null,null,null,null,null,null,null,null,null,null,null,null,null,null,null,null,null,null,null,null,null,null,null,null,null,null,null,null,null,null,null,null,null,null,null,null,null,null,null,null,null,null,null,null,null,null,null,null,null,null,null,null,null,null,null,null,null,null,null,null,null,null,null,null,null,null,null,null,null,null,null,null,null,null,null,null,null,null,null,null,null,null,null,null,null,null,null,null,null,null,null,null,null,null,null,null,null,null,null,null,null,null,null,null,null,null,null,null,null,null,null,null,null,null,null,null,null,null,null,null,null,null,null,null,null,null,null,null,null,null,null,null,null,null,null,null,null,null,null,null,null,null,null,null,null,null,null,null,null,null,null,null,null,null,null,null,null,null,null,null,null,null,null,null,null,null,null,null,null,null,null,null,null,null,null,null,null,null,null,null,null,null,null,null,null,null,null,null,null,null,null,null,null,null,null,null,null,null,null,null,null,null,null,null,null,null,null,null,null,null,null,null,null,null,null,null,null,null,null,null,null,null,null,null,null,null,null,null,null,null,null,null,null,null,null,null,null,null,null,null,null,null,null,null,null,null,null,null,null,null,null,null,null,null,null,null,null,null,null,null,null,null,null,null,null,null,null,null,null,null,null,null,null,null,null,null,null,null,null,null,null,null,null,null,null,null,null,null,null,null,null,null,null,null,null,null,null,null,null,null,null,null,null,null,null,null,null,null,null,null,null,null,null,null,null,null,null,null,null,null,null,null,null,null,null,null,null,null,null,null,null,null,null,null,null,null,null,null,null,null,null,null,null,null,null,null,null,null,null,null,null,null,null,null,null,null,null,null,null,null,null,null,null,null,null,null,null,null,null,null,null,null,null,null,null,null,null,null,null,null,null,null,null,null,null,null,null,null,null,null,null,null,null,null,null,null,null,null,null,null,null,null,null,null,null,null,null,null,null,null,null,null,null,null,null,null,null,null,null,null,null,null,null,null,null,null,null,null,null,null,null,null,null,null,null,null,null,null,null,null,null,null,null,null,null,null,null,null,null,null,null,null,null,null,null,null,null,null,null,null,null,null,null,null,null,null,null,null,null,null,null,null,null,null,null,null,null,null,null,null,null,null,null,null,null,null,null,null,null,null,null,null,null,null,null,null,null,null,null,null,null,null,null,null,null,null,null,null,null,null,null,null,null,null,null,null,null,null,null,null,null,null,null,null,null,null,null,null,null,null,null,null,null,null,null,null,null,null,null,null,null,null,null,null,null,null,null,null,null,null,null,null,null,null,null,null,null,null,null,null,null,null,null,null,null,null,null,null,null,null,null,null,null,null,null,null,null,null,null,null,null,null,null,null,null,null,null,null,null,null,null,null,null,null,null,null,null,null,null,null,null,null,null,null,null,null,null,null,null,null,null,null,null,null,null,null,null,null,null,null,null,null,null,null,null,null,null,null,null,null,null,null,null,null,null,null,null,null,null,null,null,null,null,null,null,null,null,null,null,null,null,null,null,null,null,null,null,null,null,null,null,null,null,null,null,null,null,null,null,null,null,null,null,null,null,null,null,null,null,null,null,null,null,null,null,null,null,null,null,null,null,null,null,null,null,null,null,null,null,null,null,null,null,null,null,null,null,null,null,null,null,null,null,null,null,null,null,null,null,null,null,null,null,null,null,null,null,null,null,null,null,null,null,null,null,null,null,null,null,null,null,null,null,null,null,null,null,null,null,null,null,null,null,null,null,null,null,null,null,null,null,null,null,null,null,null,null,null,null,null,null,null,null,null,null,null,null,null,null,null,null,null,null,null,null,null,null,null,null,null,null,null,null,null,null,null,null,null,null,null,null,null,null,null,null,null,null,null,null,null,null,null,null,null,null,null,null,null,null,null,null,null,null,null,null,null,null,null,null,null,null,null,null,null,null,null,null,null,null,null,null,null,null,null,null,null,null,null,null,null,null,null,null,null,null,null,null,null,null,null,null,null,null,null,null,null,null,null,null,null,null,null,null,null,null,null,null,null,null,null,null,null,null,null,null,null,null,null,null,null,null,null,null,null,null,null,null,null,null,null,null,null,null,null,null,null,null,null,null,null,null,null,null,null,null,null,null,null,null,null,null,null,null,null,null,null,null,null,null,null,null,null,null,null,null,null,null,null,null,null,null,null,null,null,null,null,null,null,null,null,null,null,null,null,null,null,null,null,null,null,null,null,null,null,null,null,null,null,null,null,null,null,null,null,null,null,null,null,null,null,null,null,null,null,null,null,null,null,null,null,null,null,null,null,null,null,null,null,null,null,null,null,null,null,null,null,null,null,null,null,null,null,null,null,null,null,null,null,null,null,null,null,null,null,null,null,null,null,null,null,null,null,null,null,null,null,null,null,null,null,null,null,null,null,null,null,null,null,null,null,null,null,null,null,null,null,null,null,null,null,null,null,null,null,null,null,null,null,null,null,null,null,null,null,null,null,null,null,null,null,null,null,null,null,null,null,null,null,null,null,null,null,null,null,null,null,null,null,null,null,null,null,null,null,null,null,null,null,null,null,null,null,null,null,null,null,null,null,null,null,null,null,null,null,null,null,null,null,null,null,null,null,null,null,null,null,null,null,null,null,null,null,null,null,null,null,null,null,null,null,null,null,null,null,null,null,null,null,null,null,null,null,null,null,null,null,null,null,null,null,null,null,null,null,null,null,null,null,null,null,null,null,null,null,null,null,null,null,null,null,null,null,null,null,null,null,null,null,null,null,null,null,null,null,null,null,null,null,null,null,null,null,null,null,null,null,null,null,null,null,null,null,null,null,null,null,null,null,null,null,null,null,null,null,null,null,null,null,null,null,null,null,null,null,null,null,null,null,null,null,null,null,null,null,null,null,null,null,null,null,null,null,null,null,null,null,null,null,null,null,null,null,null,null,null,null,null,null,null,null,null,null,null,null,null,null,null,null,null,null,null,null,null,null,null,null,null,null,null,null,null,null,null,null,null,null,null,null,null,null,null,null,null,null,null,null,null,null,null,null,null,null,null,null,null,null,null,null,null,null,null,null,null,null,null,null,null,null,null,null,null,null,null,null,null,null,null,null,null,null,null,null,null,null,null,null,null,null,null,null,null,null,null,null,null,null,null,null,null,null,null,null,null,null,null,null,null,null,null,null,null,null,null,null,null,null,null,null,null,null,null,null,null,null,null,null,null,null,null,null,null,null,null,null,null,null,null,null,null,null,null,null,null,null,null,null,null,null,null,null,null,null,null,null,null,null,null,null,null,null,null,null,null,null,null,null,null,null,null,null,null,null,null,null,null,null,null,null,null,null,null,null,null,null,null,null,null,null,null,null,null,null,null,null,null,null,null,null,null,null,null,null,null,null,null,null,null,null,null,null,null,null,null,null,null,null,null,null,null,null,null,null,null,null,null,null,null,null,null,null,null,null,null,null,null,null,null,null,null,null,null,null,null,null,null,null,null,null,null,null,null,null,null,null,null,null,null,null,null,null,null,null,null,null,null,null,null,null,null,null,null,null,null,null,null,null,null,null,null,null,null,null,null,null,null,null,null,null,null,null,null,null,null,null,null,null,null,null,null,null,null,null,null,null,null,null,null,null,null,null,null,null,null,null,null,null,null,null,null,null,null,null,null,null,null,null,null,null,null,null,null,null,null,null,null,null,null,null,null,null,null,null,null,null,null,null,null,null,null,null,null,null,null,null,null,null,null,null,null,null,null,null,null,null,null,null,null,null,null,null,null,null,null,null,null,null,null,null,null,null,null,null,null,null,null,null,null,null,null,null,null,null,null,null,null,null,null,null,null,null,null,null,null,null,null,null,null,null,null,null,null,null,null,null,null,null,null,null,null,null,null,null,null,null,null,null,null,null,null,null,null,null,null,null,null,null,null,null,null,null,null,null,null,null,null,null,null,null,null,null,null,null,null,null,null,null,null,null,null,null,null,null,null,null,null,null,null,null,null,null,null,null,null,null,null,null,null,null,null,null,null,null,null,null,null,null,null,null,null,null,null,null,null,null,null,null,null,null,null,null,null,null,null,null,null,null,null,null,null,null,null,null,null,null,null,null,null,null,null,null,null,null,null,null,null,null,null,null,null,null,null,null,null,null,null,null,null,null,null,null,null,null,null,null,null,null,null,null,null,null,null,null,null,null,null,null,null,null,null,null,null,null,null,null,null,null,null,null,null,null,null,null,null,null,null,null,null,null,null,null,null,null,null,null,null,null,null,null,null,null,null,null,null,null,null,null,null,null,null,null,null,null,null,null,null,null,null,null,null,null,null,null,null,null,null,null,null,null,null,null,null,null,null,null,null,null,null,null,null,null,null,null,null,null,null,null,null,null,null,null,null,null,null,null,null,null,null,null,null,null,null,null,null,null,null,null,null,null,null,null,null,null,null,null,null,null,null,null,null,null,null,null,null,null,null,null,null,null,null,null,null,null,null,null,null,null,null,null,null,null,null,null,null,null,null,null,null,null,null,null,null,null,null,null,null,null,null,null,null,null,null,null,null,null,null,null,null,null,null,null,null,null,null,null,null,null,null,null,null,null,null,null,null,null,null,null,null,null,null,null,null,null,null,null,null,null,null,null,null,null,null,null,null,null,null,null,null,null,null,null,null,null,null,null,null,null,null,null,null,null,null,null,null,null,null,null,null,null,null,null,null,null,null,null,null,null,null,null,null,null,null,null,null,null,null,null,null,null,null,null,null,null,null,null,null,null,null,null,null,null,null,null,null,null,null,null,null,null,null,null,null,null,null,null,null,null,null,null,null,null,null,null,null,null,null,null,null,null,null,null,null,null,null,null,null,null,null,null,null,null,null,null,null,null,null,null,null,null,null,null,null,null,null,null,null,null,null,null,null,null,null,null,null,null,null,null,null,null,null,null,null,null,null,null,null,null,null,null,null,null,null,null,null,null,null,null,null,null,null,null,null,null,null,null,null,null,null,null,null,null,null,null,null,null,null,null,null,null,null,null,null,null,null,null,null,null,null,null,null,null,null,null,null,null,null,null,null,null,null,null,null,null,null,null,null,null,null,null,null,null,null,null,null,null,null,null,null,null,null,null,null,null,null,null,null,null,null,null,null,null,null,null,null,null,null,null,null,null,null,null,null,null,null,null,null,null,null,null,null,null,null,null,null,null,null,null,null,null,null,null,null,null,null,null,null,null,null,null,null,null,null,null,null,null,null,null,null,null,null,null,null,null,null,null,null,null,null,null,null,null,null,null,null,null,null,null,null,null,null,null,null,null,null,null,null,null,null,null,null,null,null,null,null,null,null,null,null,null,null,null,null,null,null,null,null,null,null,null,null,null,null,null,null,null,null,null,null,null,null,null,null,null,null,null,null,null,null,null,null,null,null,null,null,null,null,null,null,null,null,null,null,null,null,null,null,null,null,null,null,null,null,null,null,null,null,null,null,null,null,null,null,null,null,null,null,null,null,null,null,null,null,null,null,null,null,null,null,null,null,null,null,null,null,null,null,null,null,null,null,null,null,null,null,null,null,null,null,null,null,null,null,null,null,null,null,null,null,null,null,null,null,null,null,null,null,null,null,null,null,null,null,null,null,null,null,null,null,null,null,null,null,null,null,null,null,null,null,null,null,null,null,null,null,null,null,null,null,null,null,null,null,null,null,null,null,null,null,null,null,null,null,null,null,null,null,null,null,null,null,null,null,null,null,null,null,null,null,null,null,null,null,null,null,null,null,null,null,null,null,null,null,null,null,null,null,null,null,null,null,null,null,null,null,null,null,null,null,null,null,null,null,null,null,null,null,null,null,null,null,null,null,null,null,null,null,null,null,null,null,null,null,null,null,null,null,null,null,null,null,null,null,null,null,null,null,null,null,null,null,null,null,null,null,null,null,null,null,null,null,null,null,null,null,null,null,null,null,null,null,null,null,null,null,null,null,null,null,null,null,null,null,null,null,null,null,null,null,null,null,null,null,null,null,null,null,null,null,null,null,null,null,null,null,null,null,null,null,null,null,null,null,null,null,null,null,null,null,null,null,null,null,null,null,null,null,null,null,null,null,null,null,null,null,null,null,null,null,null,null,null,null,null,null,null,null,null,null,null,null,null,null,null,null,null,null,null,null,null,null,null,null,null,null,null,null,null,null,null,null,null,null,null,null,null,null,null,null,null,null,null,null,null,null,null,null,null,null,null,null,null,null,null,null,null,null,null,null,null,null,null,null,null,null,null,null,null,null,null,null,null,null,null,null,null,null,null,null,null,null,null,null,null,null,null,null,null,null,null,null,null,null,null,null,null,null,null,null,null,null,null,null,null,null,null,null,null,null,null,null,null,null,null,null,null,null,null,null,null,null,null,null,null,null,null,null,null,null,null,null,null,null,null,null,null,null,null,null,null,null,null,null,null,null,null,null,null,null,null,null,null,null,null,null,null,null,null,null,null,null,null,null,null,null,null,null,null,null,null,null,null,null,null,null,null,null,null,null,null,null,null,null,null,null,null,null,null,null,null,null,null,null,null,null,null,null,null,null,null,null,null,null,null,null,null,null,null,null,null,null,null,null,null,null,null,null,null,null,null,null,null,null,null,null,null,null,null,null,null,null,null,null,null,null,null,null,null,null,null,null,null,null,null,null,null,null,null,null,null,null,null,null,null,null,null,null,null,null,null,null,null,null,null,null,null,null,null,null,null,null,null,null,null,null,null,null,null,null,null,null,null,null,null,null,null,null,null,null,null,null,null,null,null,null,null,null,null,null,null,null,null,null,null,null,null,null,null,null,null,null,null,null,null,null,null,null,null,null,null,null,null,null,null,null,null,null,null,null,null,null,null,null,null,null,null,null,null,null,null,null,null,null,null,null,null,null,null,null,null,null,null,null,null,null,null,null,null,null,null,null,null,null,null,null,null,null,null,null,null,null,null,null,null,null,null,null,null,null,null,null,null,null,null,null,null,null,null,null,null,null,null,null,null,null,null,null,null,null,null,null,null,null,null,null,null,null,null,null,null,null,null,null,null,null,null,null,null,null,null,null,null,null,null,null,null,null,null,null,null,null,null,null,null,null,null,null,null,null,null,null,null,null,null,null,null,null,null,null,null,null,null,null,null,null,null,null,null,null,null,null,null,null,null,null,null,null,null,null,null,null,null,null,null,null,null,null,null,null,null,null,null,null,null,null,null,null,null,null,null,null,null,null,null,null,null,null,null,null,null,null,null,null,null,null,null,null,null,null,null,null,null,null,null,null,null,null,null,null,null,null,null,null,null,null,null,null,null,null,null,null,null,null,null,null,null,null,null,null,null,null,null,null,null,null,null,null,null,null,null,null,null,null,null,null,null,null,null,null,null,null,null,null,null,null,null,null,null,null,null,null,null,null,null,null,null,null,null,null,null,null,null,null,null,null,null,null,null,null,null,null,null,null,null,null,null,null,null,null,null,null,null,null,null,null,null,null,null,null,null,null,null,null,null,null,null,null,null,null,null,null,null,null,null,null,null,null,null,null,null,null,null,null,null,null,null,null,null,null,null,null,null,null,null,null,null,null,null,null,null,null,null,null,null,null,null,null,null,null,null,null,null,null,null,null,null,null,null,null,null,null,null,null,null,null,null,null,null,null,null,null,null,null,null,null,null,null,null,null,null,null,null,null,null,null,null,null,null,null,null,null,null,null,null,null,null,null,null,null,null,null,null,null,null,null,null,null,null,null,null,null,null,null,null,null,null,null,null,null,null,null,null,null,null,null,null,null,null,null,null,null,null,null,null,null,null,null,null,null,null,null,null,null,null,null,null,null,null,null,null,null,null,null,null,null,null,null,null,null,null,null,null,null,null,null,null,null,null,null,null,null,null,null,null,null,null,null,null,null,null,null,null,null,null,null,null,null,null,null,null,null,null,null,null,null,null,null,null,null,null,null,null,null,null,null,null,null,null,null,null,null,null,null,null,null,null,null,null,null,null,null,null,null,null,null,null,null,null,null,null,null,null,null,null,null,null,null,null,null,null,null,null,null,null,null,null,null,null,null,null,null,null,null,null,null,null,null,null,null,null,null,null,null,null,null,null,null,null,null,null,null,null,null,null,null,null,null,null,null,null,null,null,null,null,null,null,null,null,null,null,null,null,null,null,null,null,null,null,null,null,null,null,null,null,null,null,null,null,null,null,null,null,null,null,null,null,null,null,null,null,null,null,null,null,null,null,null,null,null,null,null,null,null,null,null,null,null,null,null,null,null,null,null,null,null,null,null,null,null,null,null,null,null,null,null,null,null,null,null,null,null,null,null,null,null,null,null,null,null,null,null,null,null,null,null,null,null,null,null,null,null,null,null,null,null,null,null,null,null,null,null,null,null,null,null,null,null,null,null,null,null,null,null,null,null,null,null,null,null,null,null,null,null,null,null,null,null,null,null,null,null,null,null,null,null,null,null,null,null,null,null,null,null,null,null,null,null,null,null,null,null,null,null,null,null,null,null,null,null,null,null,null,null,null,null,null,null,null,null,null,null,null,null,null,null,null,null,null,null,null,null,null,null,null,null,null,null,null,null,null,null,null,null,null,null,null,null,null,null,null,null,null,null,null,null,null,null,null,null,null,null,null,null,null,null,null,null,null,null,null,null,null,null,null,null,null,null,null,null,null,null,null,null,null,null,null,null,null,null,null,null,null,null,null,null,null,null,null,null,null,null,null,null,null,null,null,null,null,null,null,null,null,null,null,null,null,null,null,null,null,null,null,null,null,null,null,null,null,null,null,null,null,null,null,null,null,null,null,null,null,null,null,null,null,null,null,null,null,null,null,null,null,null,null,null,null,null,null,null,null,null,null,null,null,null,null,null,null,null,null,null,null,null,null,null,null,null,null,null,null,null,null,null,null,null,null,null,null,null,null,null,null,null,null,null,null,null,null,null,null,null,null,null,null,null,null,null,null,null,null,null,null,null,null,null,null,null,null,null,null,null,null,null,null,null,null,null,null,null,null,null,null,null,null,null,null,null,null,null,null,null,null,null,null,null,null,null,null,null,null,null,null,null,null,null,null,null,null,null,null,null,null,null,null,null,null,null,null,null,null,null,null,null,null,null,null,null,null,null,null,null,null,null,null,null,null,null,null,null,null,null,null,null,null,null,null,null,null,null,null,null,null,null,null,null,null,null,null,null,null,null,null,null,null,null,null,null,null,null,null,null,null,null,null,null,null,null,null,null,null,null,null,null,null,null,null,null,null,null,null,null,null,null,null,null,null,null,null,null,null,null,null,null,null,null,null,null,null,null,null,null,null,null,null,null,null,null,null,null,null,null,null,null,null,null,null,null,null,null,null,null,null,null,null,null,null,null,null,null,null,null,null,null,null,null,null,null,null,null,null,null,null,null,null,null,null,null,null,null,null,null,null,null,null,null,null,null,null,null,null,null,null,null,null,null,null,null,null,null,null,null,null,null,null,null,null,null,null,null,null,null,null,null,null,null,null,null,null,null,null,null,null,null,null,null,null,null,null,null,null,null,null,null,null,null,null,null,null,null,null,null,null,null,null,null,null,null,null,null,null,null,null,null,null,null,null,null,null,null,null,null,null,null,null,null,null,null,null,null,null,null,null,null,null,null,null,null,null,null,null,null,null,null,null,null,null,null,null,null,null,null,null,null,null,null,null,null,null,null,null,null,null,null,null,null,null,null,null,null,null,null,null,null,null,null,null,null,null,null,null,null,null,null,null,null,null,null,null,null,null,null,null,null,null,null,null,null,null,null,null,null,null,null,null,null,null,null,null,null,null,null,null,null,null,null,null,null,null,null,null,null,null,null,null,null,null,null,null,null,null,null,null,null,null,null,null,null,null,null,null,null,null,null,null,null,null,null,null,null,null,null,null,null,null,null,null,null,null,null,null,null,null,null,null,null,null,null,null,null,null,null,null,null,null,null,null,null,null,null,null,null,null,null,null,null,null,null,null,null,null,null,null,null,null,null,null,null,null,null,null,null,null,null,null,null,null,null,null,null,null,null,null,null,null,null,null,null,null,null,null,null,null,null,null,null,null,null,null,null,null,null,null,null,null,null,null,null,null,null,null,null,null,null,null,null,null,null,null,null,null,null,null,null,null,null,null,null,null,null,null,null,null,null,null,null,null,null,null,null,null,null,null,null,null,null,null,null,null,null,null,null,null,null,null,null,null,null,null,null,null,null,null,null,null,null,null,null,null,null,null,null,null,null,null,null,null,null,null,null,null,null,null,null,null,null,null,null,null,null,null,null,null,null,null,null,null,null,null,null,null,null,null,null,null,null,null,null,null,null,null,null,null,null,null,null,null,null,null,null,null,null,null,null,null,null,null,null,null,null,null,null,null,null,null,null,null,null,null,null,null,null,null,null,null,null,null,null,null,null,null,null,null,null,null,null,null,null,null,null,null,null,null,null,null,null,null,null,null,null,null,null,null,null,null,null,null,null,null,null,null,null,null,null,null,null,null,null,null,null,null,null,null,null,null,null,null,null,null,null,null,null,null,null,null,null,null,null,null,null,null,null,null,null,null,null,null,null,null,null,null,null,null,null,null,null,null,null,null,null,null,null,null,null,null,null,null,null,null,null,null,null,null,null,null,null,null,null,null,null,null,null,null,null,null,null,null,null,null,null,null,null,null,null,null,null,null,null,null,null,null,null,null,null,null,null,null,null,null,null,null,null,null,null,null,null,null,null,null,null,null,null,null,null,null,null,null,null,null,null,null,null,null,null,null,null,null,null,null,null,null,null,null,null,null,null,null,null,null,null,null,null,null,null,null,null,null,null,null,null,null,null,null,null,null,null,null,null,null,null,null,null,null,null,null,null,null,null,null,null,null,null,null,null,null,null,null,null,null,null,null,null,null,null,null,null,null,null,null,null,null,null,null,null,null,null,null,null,null,null,null,null,null,null,null,null,null,null,null,null,null,null,null,null,null,null,null,null,null,null,null,null,null,null,null,null,null,null,null,null,null,null,null,null,null,null,null,null,null,null,null,null,null,null,null,null,null,null,null,null,null,null,null,null,null,null,null,null,null,null,null,null,null,null,null,null,null,null,null,null,null,null,null,null,null,null,null,null,null,null,null,null,null,null,null,null,null,null,null,null,null,null,null,null,null,null,null,null,null,null,null,null,null,null,null,null,null,null,null,null,null,null,null,null,null,null,null,null,null,null,null,null,null,null,null,null,null,null,null,null,null,null,null,null,null,null,null,null,null,null,null,null,null,null,null,null,null,null,null,null,null,null,null,null,null,null,null,null,null,null,null,null,null,null,null,null,null,null,null,null,null,null,null,null,null,null,null,null,null,null,null,null,null,null,null,null,null,null,null,null,null,null,null,null,null,null,null,null,null,null,null,null,null,null,null,null,null,null,null,null,null,null,null,null,null,null,null,null,null,null,null,null,null,null,null,null,null,null,null,null,null,null,null,null,null,null,null,null,null,null,null,null,null,null,null,null,null,null,null,null,null,null,null,null,null,null,null,null,null,null,null,null,null,null,null,null,null,null,null,null,null,null,null,null,null,null,null,null,null,null,null,null,null,null,null,null,null,null,null,null,null,null,null,null,null,null,null,null,null,null,null,null,null,null,null,null,null,null,null,null,null,null,null,null,null,null,null,null,null,null,null,null,null,null,null,null,null,null,null,null,null,null,null,null,null,null,null,null,null,null,null,null,null,null,null,null,null,null,null,null,null,null,null,null,null,null,null,null,null,null,null,null,null,null,null,null,null,null,null,null,null,null,null,null,null,null,null,null,null,null,null,null,null,null,null,null,null,null,null,null,null,null,null,null,null,null,null,null,null,null,null,null,null,null,null,null,null,null,null,null,null,null,null,null,null,null,null,null,null,null,null,null,null,null,null,null,null,null,null,null,null,null,null,null,null,null,null,null,null,null,null,null,null,null,null,null,null,null,null,null,null,null,null,null,null,null,null,null,null,null,null,null,null,null,null,null,null,null,null,null,null,null,null,null,null,null,null,null,null,null,null,null,null,null,null,null,null,null,null,null,null,null,null,null,null,null,null,null,null,null,null,null,null,null,null,null,null,null,null,null,null,null,null,null,null,null,null,null,null,null,null,null,null,null,null,null,null,null,null,null,null,null,null,null,null,null,null,null,null,null,null,null,null,null,null,null,null,null,null,null,null,null,null,null,null,null,null,null,null,null,null,null,null,null,null,null,null,null,null,null,null,null,null,null,null,null,null,null,null,null,null,null,null,null,null,null,null,null,null,null,null,null,null,null,null,null,null,null,null,null,null,null,null,null,null,null,null,null,null,null,null,null,null,null,null,null,null,null,null,null,null,null,null,null,null,null,null,null,null,null,null,null,null,null,null,null,null,null,null,null,null,null,null,null,null,null,null,null,null,null,null,null,null,null,null,null,null,null,null,null,null,null,null,null,null,null,null,null,null,null,null,null,null,null,null,null,null,null,null,null,null,null,null,null,null,null,null,null,null,null,null,null,null,null,null,null,null,null,null,null,null,null,null,null,null,null,null,null,null,null,null,null,null,null,null,null,null,null,null,null,null,null,null,null,null,null,null,null,null,null,null,null,null,null,null,null,null,null,null,null,null,null,null,null,null,null,null,null,null,null,null,null,null,null,null,null,null,null,null,null,null,null,null,null,null,null,null,null,null,null,null,null,null,null,null,null,null,null,null,null,null,null,null,null,null,null,null,null,null,null,null,null,null,null,null,null,null,null,null,null,null,null,null,null,null,null,null,null,null,null,null,null,null,null,null,null,null,null,null,null,null,null,null,null,null,null,null,null,null,null,null,null,null,null,null,null,null,null,null,null,null,null,null,null,null,null,null,null,null,null,null,null,null,null,null,null,null,null,null,null,null,null,null,null,null,null,null,null,null,null,null,null,null,null,null,null,null,null,null,null,null,null,null,null,null,null,null,null,null,null,null,null,null,null,null,null,null,null,null,null,null,null,null,null,null,null,null,null,null,null,null,null,null,null,null,null,null,null,null,null,null,null,null,null,null,null,null,null,null,null,null,null,null,null,null,null,null,null,null,null,null,null,null,null,null,null,null,null,null,null,null,null,null,null,null,null,null,null,null,null,null,null,null,null,null,null,null,null,null,null,null,null,null,null,null,null,null,null,null,null,null,null,null,null,null,null,null,null,null,null,null,null,null,null,null,null,null,null,null,null,null,null,null,null,null,null,null,null,null,null,null,null,null,null,null,null,null,null,null,null,null,null,null,null,null,null,null,null,null,null,null,null,null,null,null,null,null,null,null,null,null,null,null,null,null,null,null,null,null,null,null,null,null,null,null,null,null,null,null,null,null,null,null,null,null,null,null,null,null,null,null,null,null,null,null,null,null,null,null,null,null,null,null,null,null,null,null,null,null,null,null,null,null,null,null,null,null,null,null,null,null,null,null,null,null,null,null,null,null,null,null,null,null,null,null,null,null,null,null,null,null,null,null,null,null,null,null,null,null,null,null,null,null,null,null,null,null,null,null,null,null,null,null,null,null,null,null,null,null,null,null,null,null,null,null,null,null,null,null,null,null,null,null,null,null,null,null,null,null,null,null,null,null,null,null,null,null,null,null,null,null,null,null,null,null,null,null,null,null,null,null,null,null,null,null,null,null,null,null,null,null,null,null,null,null,null,null,null,null,null,null,null,null,null,null,null,null,null,null,null,null,null,null,null,null,null,null,null,null,null,null,null,null,null,null,null,null,null,null,null,null,null,null,null,null,null,null,null,null,null,null,null,null,null,null,null,null,null,null,null,null,null,null,null,null,null,null,null,null,null,null,null,null,null,null,null,null,null,null,null,null,null,null,null,null,null,null,null,null,null,null,null,null,null,null,null,null,null,null,null,null,null,null,null,null,null,null,null,null,null,null,null,null,null,null,null,null,null,null,null,null,null,null,null,null,null,null,null,null,null,null,null,null,null,null,null,null,null,null,null,null,null,null,null,null,null,null,null,null,null,null,null,null,null,null,null,null,null,null,null,null,null,null,null,null,null,null,null,null,null,null,null,null,null,null,null,null,null,null,null,null,null,null,null,null,null,null,null,null,null,null,null,null,null,null,null,null,null,null,null,null,null,null,null,null,null,null,null,null,null,null,null,null,null,null,null,null,null,null,null,null,null,null,null,null,null,null,null,null,null,null,null,null,null,null,null,null,null,null,null,null,null,null,null,null,null,null,null,null,null,null,null,null,null,null,null,null,null,null,null,null,null,null,null,null,null,null,null,null,null,null,null,null,null,null,null,null,null,null,null,null,null,null,null,null,null,null,null,null,null,null,null,null,null,null,null,null,null,null,null,null,null,null,null,null,null,null,null,null,null,null,null,null,null,null,null,null,null,null,null,null,null,null,null,null,null,null,null,null,null,null,null,null,null,null,null,null,null,null,null,null,null,null,null,null,null,null,null,null,null,null,null,null,null,null,null,null,null,null,null,null,null,null,null,null,null,null,null,null,null,null,null,null,null,null,null,null,null,null,null,null,null,null,null,null,null,null,null,null,null,null,null,null,null,null,null,null,null,null,null,null,null,null,null,null,null,null,null,null,null,null,null,null,null,null,null,null,null,null,null,null,null,null,null,null,null,null,null,null,null,null,null,null,null,null,null,null,null,null,null,null,null,null,null,null,null,null,null,null,null,null,null,null,null,null,null,null,null,null,null,null,null,null,null,null,null,null,null,null,null,null,null,null,null,null,null,null,null,null,null,null,null,null,null,null,null,null,null,null,null,null,null,null,null,null,null,null,null,null,null,null,null,null,null,null,null,null,null,null,null,null,null,null,null,null,null,null,null,null,null,null,null,null,null,null,null,null,null,null,null,null,null,null,null,null,null,null,null,null,null,null,null,null,null,null,null,null,null,null,null,null,null,null,null,null,null,null,null,null,null,null,null,null,null,null,null,null,null,null,null,null,null,null,null,null,null,null,null,null,null,null,null,null,null,null,null,null,null,null,null,null,null,null,null,null,null,null,null,null,null,null,null,null,null,null,null,null,null,null,null,null,null,null,null,null,null,null,null,null,null,null,null,null,null,null,null,null,null,null,null,null,null,null,null,null,null,null,null,null,null,null,null,null,null,null,null,null,null,null,null,null,null,null,null,null,null,null,null,null,null,null,null,null,null,null,null,null,null,null,null,null,null,null,null,null,null,null,null,null,null,null,null,null,null,null,null,null,null,null,null,null,null,null,null,null,null,null,null,null,null,null,null,null,null,null,null,null,null,null,null,null,null,null,null,null,null,null,null,null,null,null,null,null,null,null,null,null,null,null,null,null,null,null,null,null,null,null,null,null,null,null,null,null,null,null,null,null,null,null,null,null,null,null,null,null,null,null,null,null,null,null,null,null,null,null,null,null,null,null,null,null,null,null,null,null,null,null,null,null,null,null,null,null,null,null,null,null,null,null,null,null,null,null,null,null,null,null,null,null,null,null,null,null,null,null,null,null,null,null,null,null,null,null,null,null,null,null,null,null,null,null,null,null,null,null,null,null,null,null,null,null,null,null,null,null,null,null,null,null,null,null,null,null,null,null,null,null,null,null,null,null,null,null,null,null,null,null,null,null,null,null,null,null,null,null,null,null,null,null,null,null,null,null,null,null,null,null,null,null,null,null,null,null,null,null,null,null,null,null,null,null,null,null,null,null,null,null,null,null,null,null,null,null,null,null,null,null,null,null,null,null,null,null,null,null,null,null,null,null,null,null,null,null,null,null,null,null,null,null,null,null,null,null,null,null,null,null,null,null,null,null,null,null,null,null,null,null,null,null,null,null,null,null,null,null,null,null,null,null,null,null,null,null,null,null,null,null,null,null,null,null,null,null,null,null,null,null,null,null,null,null,null,null,null,null,null,null,null,null,null,null,null,null,null,null,null,null,null,null,null,null,null,null,null,null,null,null,null,null,null,null,null,null,null,null,null,null,null,null,null,null,null,null,null,null,null,null,null,null,null,null,null,null,null,null,null,null,null,null,null,null,null,null,null,null,null,null,null,null,null,null,null,null,null,null,null,null,null,null,null,null,null,null,null,null,null,null,null,null,null,null,null,null,null,null,null,null,null,null,null,null,null,null,null,null,null,null,null,null,null,null,null,null,null,null,null,null,null,null,null,null,null,null,null,null,null,null,null,null,null,null,null,null,null,null,null,null,null,null,null,null,null,null,null,null,null,null,null,null,null,null,null,null,null,null,null,null,null,null,null,null,null,null,null,null,null,null,null,null,null,null,null,null,null,null,null,null,null,null,null,null,null,null,null,null,null,null,null,null,null,null,null,null,null,null,null,null,null,null,null,null,null,null,null,null,null,null,null,null,null,null,null,null,null,null,null,null,null,null,null,null,null,null,null,null,null,null,null,null,null,null,null,null,null,null,null,null,null,null,null,null,null,null,null,null,null,null,null,null,null,null,null,null,null,null,null,null,null,null,null,null,null,null,null,null,null,null,null,null,null,null,null,null,null,null,null,null,null,null,null,null,null,null,null,null,null,null,null,null,null,null,null,null,null,null,null,null,null,null,null,null,null,null,null,null,null,null,null,null,null,null,null,null,null,null,null,null,null,null,null,null,null,null,null,null,null,null,null,null,null,null,null,null,null,null,null,null,null,null,null,null,null,null,null,null,null,null,null,null,null,null,null,null,null,null,null,null,null,null,null,null,null,null,null,null,null,null,null,null,null,null,null,null,null,null,null,null,null,null,null,null,null,null,null,null,null,null,null,null,null,null,null,null,null,null,null,null,null,null,null,null,null,null,null,null,null,null,null,null,null,null,null,null,null,null,null,null,null,null,null,null,null,null,null,null,null,null,null,null,null,null,null,null,null,null,null,null,null,null,null,null,null,null,null,null,null,null,null,null,null,null,null,null,null,null,null,null,null,null,null,null,null,null,null,null,null,null,null,null,null,null,null,null,null,null,null,null,null,null,null,null,null,null,null,null,null,null,null,null,null,null,null,null,null,null,null,null,null,null,null,null,null,null,null,null,null,null,null,null,null,null,null,null,null,null,null,null,null,null,null,null,null,null,null,null,null,null,null,null,null,null,null,null,null,null,null,null,null,null,null,null,null,null,null,null,null,null,null,null,null,null,null,null,null,null,null,null,null,null,null,null,null,null,null,null,null,null,null,null,null,null,null,null,null,null,null,null,null,null,null,null,null,null,null,null,null,null,null,null,null,null,null,null,null,null,null,null,null,null,null,null,null,null,null,null,null,null,null,null,null,null,null,null,null,null,null,null,null,null,null,null,null,null,null,null,null,null,null,null,null,null,null,null,null,null,null,null,null,null,null,null,null,null,null,null,null,null,null,null,null,null,null,null,null,null,null,null,null,null,null,null,null,null,null,null,null,null,null,null,null,null,null,null,null,null,null,null,null,null,null,null,null,null,null,null,null,null,null,null,null,null,null,null,null,null,null,null,null,null,null,null,null,null,null,null,null,null,null,null,null,null,null,null,null,null,null,null,null,null,null,null,null,null,null,null,null,null,null,null,null,null,null,null,null,null,null,null,null,null,null,null,null,null,null,null,null,null,null,null,null,null,null,null,null,null,null,null,null,null,null,null,null,null,null,null,null,null,null,null,null,null,null,null,null,null,null,null,null,null,null,null,null,null,null,null,null,null,null,null,null,null,null,null,null,null,null,null,null,null,null,null,null,null,null,null,null,null,null,null,null,null,null,null,null,null,null,null,null,null,null,null,null,null,null,null,null,null,null,null,null,null,null,null,null,null,null,null,null,null,null,null,null,null,null,null,null,null,null,null,null,null,null,null,null,null,null,null,null,null,null,null,null,null,null,null,null,null,null,null,null,null,null,null,null,null,null,null,null,null,null,null,null,null,null,null,null,null,null,null,null,null,null,null,null,null,null,null,null,null,null,null,null,null,null,null,null,null,null,null,null,null,null,null,null,null,null,null,null,null,null,null,null,null,null,null,null,null,null,null,null,null,null,null,null,null,null,null,null,null,null,null,null,null,null,null,null,null,null,null,null,null,null,null,null,null,null,null,null,null,null,null,null,null,null,null,null,null,null,null,null,null,null,null,null,null,null,null,null,null,null,null,null,null,null,null,null,null,null,null,null,null,null,null,null,null,null,null,null,null,null,null,null,null,null,null,null,null,null,null,null,null,null,null,null,null,null,null,null,null,null,null,null,null,null,null,null,null,null,null,null,null,null,null,null,null,null,null,null,null,null,null,null,null,null,null,null,null,null,null,null,null,null,null,null,null,null,null,null,null,null,null,null,null,null,null,null,null,null,null,null,null,null,null,null,null,null,null,null,null,null,null,null,null,null,null,null,null,null,null,null,null,null,null,null,null,null,null,null,null,null,null,null,null,null,null,null,null,null,null,null,null,null,null,null,null,null,null,null,null,null,null,null,null,null,null,null,null,null,null,null,null,null,null,null,null,null,null,null,null,null,null,null,null,null,null,null,null,null,null,null,null,null,null,null,null,null,null,null,null,null,null,null,null,null,null,null,null,null,null,null,null,null,null,null,null,null,null,null,null,null,null,null,null,null,null,null,null,null,null,null,null,null,null,null,null,null,null,null,null,null,null,null,null,null,null,null,null,null,null,null,null,null,null,null,null,null,null,null,null,null,null,null,null,null,null,null,null,null,null,null,null,null,null,null,null,null,null,null,null,null,null,null,null,null,null,null,null,null,null,null,null,null,null,null,null,null,null,null,null,null,null,null,null,null,null,null,null,null,null,null,null,null,null,null,null,null,null,null,null,null,null,null,null,null,null,null,null,null,null,null,null,null,null,null,null,null,null,null,null,null,null,null,null,null,null,null,null,null,null,null,null,null,null,null,null,null,null,null,null,null,null,null,null,null,null,null,null,null,null,null,null,null,null,null,null,null,null,null,null,null,null,null,null,null,null,null,null,null,null,null,null,null,null,null,null,null,null,null,null,null,null,null,null,{"$f":"SUM(B61:XEU61)","v":0}]
[{"$f":"'ב. תוכן עניינים'!C19","v":"מתקני חצר לבוגרים בלבד "},null,null,null,{"$f":"A62","v":"מתקני חצר לבוגרים בלבד "}]
[{"$f":"'ו. מתקני חצר לבוגרים  '!B8","v":"לחיצת חזה משיכה עליונה"},{"$f":"'ו. מתקני חצר לבוגרים  '!I8","v":0},{"$f":"'ו. מתקני חצר לבוגרים  '!J8","v":0},null,{"$f":"'ו. מתקני חצר לבוגרים  '!M8","v":0},{"$f":"'ו. מתקני חצר לבוגרים  '!N8","v":0},{"$f":"IF(F63=0,\"\",'ו. מתקני חצר לבוגרים  '!O8)","v":""},{"$f":"'ו. מתקני חצר לבוגרים  '!P8","v":0}]
[{"$f":"'ו. מתקני חצר לבוגרים  '!B9","v":"מתקן דחיקת כתפיים למשתמש"},{"$f":"'ו. מתקני חצר לבוגרים  '!I9","v":0},{"$f":"'ו. מתקני חצר לבוגרים  '!J9","v":0},null,{"$f":"'ו. מתקני חצר לבוגרים  '!M9","v":0},{"$f":"'ו. מתקני חצר לבוגרים  '!N9","v":0},{"$f":"IF(F64=0,\"\",'ו. מתקני חצר לבוגרים  '!O9)","v":""},{"$f":"'ו. מתקני חצר לבוגרים  '!P9","v":0}]
[{"$f":"'ו. מתקני חצר לבוגרים  '!B10","v":"מתקן פרפר חזה"},{"$f":"'ו. מתקני חצר לבוגרים  '!I10","v":0},{"$f":"'ו. מתקני חצר לבוגרים  '!J10","v":0},null,{"$f":"'ו. מתקני חצר לבוגרים  '!M10","v":0},{"$f":"'ו. מתקני חצר לבוגרים  '!N10","v":0},{"$f":"IF(F65=0,\"\",'ו. מתקני חצר לבוגרים  '!O10)","v":""},{"$f":"'ו. מתקני חצר לבוגרים  '!P10","v":0}]
[{"$f":"'ו. מתקני חצר לבוגרים  '!B11","v":"מתקן פרפר הפוך"},{"$f":"'ו. מתקני חצר לבוגרים  '!I11","v":0},{"$f":"'ו. מתקני חצר לבוגרים  '!J11","v":0},null,{"$f":"'ו. מתקני חצר לבוגרים  '!M11","v":0},{"$f":"'ו. מתקני חצר לבוגרים  '!N11","v":0},{"$f":"IF(F66=0,\"\",'ו. מתקני חצר לבוגרים  '!O11)","v":""},{"$f":"'ו. מתקני חצר לבוגרים  '!P11","v":0}]
[{"$f":"'ו. מתקני חצר לבוגרים  '!B12","v":"מתקן מקבילי כנף לזוג\nמשתמשים"},{"$f":"'ו. מתקני חצר לבוגרים  '!I12","v":0},{"$f":"'ו. מתקני חצר לבוגרים  '!J12","v":0},null,{"$f":"'ו. מתקני חצר לבוגרים  '!M12","v":0},{"$f":"'ו. מתקני חצר לבוגרים  '!N12","v":0},{"$f":"IF(F67=0,\"\",'ו. מתקני חצר לבוגרים  '!O12)","v":""},{"$f":"'ו. מתקני חצר לבוגרים  '!P12","v":0}]
[{"$f":"'ו. מתקני חצר לבוגרים  '!B13","v":"מתקן דחיקת רגליים לזוג משתמשים"},{"$f":"'ו. מתקני חצר לבוגרים  '!I13","v":0},{"$f":"'ו. מתקני חצר לבוגרים  '!J13","v":0},null,{"$f":"'ו. מתקני חצר לבוגרים  '!M13","v":0},{"$f":"'ו. מתקני חצר לבוגרים  '!N13","v":0},{"$f":"IF(F68=0,\"\",'ו. מתקני חצר לבוגרים  '!O13)","v":""},{"$f":"'ו. מתקני חצר לבוגרים  '!P13","v":0}]
[{"$f":"'ו. מתקני חצר לבוגרים  '!B14","v":"מתקן סקי"},{"$f":"'ו. מתקני חצר לבוגרים  '!I14","v":0},{"$f":"'ו. מתקני חצר לבוגרים  '!J14","v":0},null,{"$f":"'ו. מתקני חצר לבוגרים  '!M14","v":0},{"$f":"'ו. מתקני חצר לבוגרים  '!N14","v":0},{"$f":"IF(F69=0,\"\",'ו. מתקני חצר לבוגרים  '!O14)","v":""},{"$f":"'ו. מתקני חצר לבוגרים  '!P14","v":0}]
[{"$f":"'ו. מתקני חצר לבוגרים  '!B15","v":"מתקן הליכה באוויר לזוג משתמשים"},{"$f":"'ו. מתקני חצר לבוגרים  '!I15","v":0},{"$f":"'ו. מתקני חצר לבוגרים  '!J15","v":0},null,{"$f":"'ו. מתקני חצר לבוגרים  '!M15","v":0},{"$f":"'ו. מתקני חצר לבוגרים  '!N15","v":0},{"$f":"IF(F70=0,\"\",'ו. מתקני חצר לבוגרים  '!O15)","v":""},{"$f":"'ו. מתקני חצר לבוגרים  '!P15","v":0}]
[{"$f":"'ו. מתקני חצר לבוגרים  '!B16","v":"מתקן חתירה בכורסא"},{"$f":"'ו. מתקני חצר לבוגרים  '!I16","v":0},{"$f":"'ו. מתקני חצר לבוגרים  '!J16","v":0},null,{"$f":"'ו. מתקני חצר לבוגרים  '!M16","v":0},{"$f":"'ו. מתקני חצר לבוגרים  '!N16","v":0},{"$f":"IF(F71=0,\"\",'ו. מתקני חצר לבוגרים  '!O16)","v":""},{"$f":"'ו. מתקני חצר לבוגרים  '!P16","v":0}]
[{"$f":"'ו. מתקני חצר לבוגרים  '!B17","v":"מתקן מאמן אגן, שרירי בטן, ישבן  וירכיים בתנועת מטוטלת"},{"$f":"'ו. מתקני חצר לבוגרים  '!I17","v":0},{"$f":"'ו. מתקני חצר לבוגרים  '!J17","v":0},null,{"$f":"'ו. מתקני חצר לבוגרים  '!M17","v":0},{"$f":"'ו. מתקני חצר לבוגרים  '!N17","v":0},{"$f":"IF(F72=0,\"\",'ו. מתקני חצר לבוגרים  '!O17)","v":""},{"$f":"'ו. מתקני חצר לבוגרים  '!P17","v":0}]
[{"$f":"'ו. מתקני חצר לבוגרים  '!B18","v":"מתקן אופני ידיים רגליים"},{"$f":"'ו. מתקני חצר לבוגרים  '!I18","v":0},{"$f":"'ו. מתקני חצר לבוגרים  '!J18","v":0},null,{"$f":"'ו. מתקני חצר לבוגרים  '!M18","v":0},{"$f":"'ו. מתקני חצר לבוגרים  '!N18","v":0},{"$f":"IF(F73=0,\"\",'ו. מתקני חצר לבוגרים  '!O18)","v":""},{"$f":"'ו. מתקני חצר לבוגרים  '!P18","v":0}]
[{"$f":"'ו. מתקני חצר לבוגרים  '!B19","v":"מתקן אימון פולי תחתון בתמיכת חזה"},{"$f":"'ו. מתקני חצר לבוגרים  '!I19","v":0},{"$f":"'ו. מתקני חצר לבוגרים  '!J19","v":0},null,{"$f":"'ו. מתקני חצר לבוגרים  '!M19","v":0},{"$f":"'ו. מתקני חצר לבוגרים  '!N19","v":0},{"$f":"IF(F74=0,\"\",'ו. מתקני חצר לבוגרים  '!O19)","v":""},{"$f":"'ו. מתקני חצר לבוגרים  '!P19","v":0}]
[{"$f":"'ו. מתקני חצר לבוגרים  '!B20","v":"מתקן אופני ספיננג"},{"$f":"'ו. מתקני חצר לבוגרים  '!I20","v":0},{"$f":"'ו. מתקני חצר לבוגרים  '!J20","v":0},null,{"$f":"'ו. מתקני חצר לבוגרים  '!M20","v":0},{"$f":"'ו. מתקני חצר לבוגרים  '!N20","v":0},{"$f":"IF(F75=0,\"\",'ו. מתקני חצר לבוגרים  '!O20)","v":""},{"$f":"'ו. מתקני חצר לבוגרים  '!P20","v":0}]
[{"$f":"'ו. מתקני חצר לבוגרים  '!B21","v":"מתקן דחיקת רגליים ארבע"},{"$f":"'ו. מתקני חצר לבוגרים  '!I21","v":0},{"$f":"'ו. מתקני חצר לבוגרים  '!J21","v":0},null,{"$f":"'ו. מתקני חצר לבוגרים  '!M21","v":0},{"$f":"'ו. מתקני חצר לבוגרים  '!N21","v":0},{"$f":"IF(F76=0,\"\",'ו. מתקני חצר לבוגרים  '!O21)","v":""},{"$f":"'ו. מתקני חצר לבוגרים  '!P21","v":0}]
[{"$f":"'ו. מתקני חצר לבוגרים  '!B22","v":"מתקן מתח –מקבילים וכורסת בטן"},{"$f":"'ו. מתקני חצר לבוגרים  '!I22","v":0},{"$f":"'ו. מתקני חצר לבוגרים  '!J22","v":0},null,{"$f":"'ו. מתקני חצר לבוגרים  '!M22","v":0},{"$f":"'ו. מתקני חצר לבוגרים  '!N22","v":0},{"$f":"IF(F77=0,\"\",'ו. מתקני חצר לבוגרים  '!O22)","v":""},{"$f":"'ו. מתקני חצר לבוגרים  '!P22","v":0}]
[{"$f":"'ו. מתקני חצר לבוגרים  '!C25","v":"נדנדה קן לציפור"},{"$f":"'ו. מתקני חצר לבוגרים  '!I25","v":0},{"$f":"'ו. מתקני חצר לבוגרים  '!J25","v":0},null,{"$f":"'ו. מתקני חצר לבוגרים  '!M25","v":0},{"$f":"'ו. מתקני חצר לבוגרים  '!N25","v":0},{"$f":"IF(F78=0,\"\",'ו. מתקני חצר לבוגרים  '!O25)","v":""},{"$f":"'ו. מתקני חצר לבוגרים  '!P25","v":0}]
[{"$f":"'ו. מתקני חצר לבוגרים  '!C26","v":"מתקן נדנדות כפול"},{"$f":"'ו. מתקני חצר לבוגרים  '!I26","v":0},{"$f":"'ו. מתקני חצר לבוגרים  '!J26","v":0},null,{"$f":"'ו. מתקני חצר לבוגרים  '!M26","v":0},{"$f":"'ו. מתקני חצר לבוגרים  '!N26","v":0},{"$f":"IF(F79=0,\"\",'ו. מתקני חצר לבוגרים  '!O26)","v":""},{"$f":"'ו. מתקני חצר לבוגרים  '!P26","v":0}]
[{"$f":"'ו. מתקני חצר לבוגרים  '!C27","v":"מתקן משולב "},{"$f":"'ו. מתקני חצר לבוגרים  '!I27","v":0},{"$f":"'ו. מתקני חצר לבוגרים  '!J27","v":0},null,{"$f":"'ו. מתקני חצר לבוגרים  '!M27","v":0},{"$f":"'ו. מתקני חצר לבוגרים  '!N27","v":0},{"$f":"IF(F80=0,\"\",'ו. מתקני חצר לבוגרים  '!O27)","v":""},{"$f":"'ו. מתקני חצר לבוגרים  '!P27","v":0}]
[{"$f":"'ו. מתקני חצר לבוגרים  '!C28","v":"מתקן קפיץ"},{"$f":"'ו. מתקני חצר לבוגרים  '!I28","v":0},{"$f":"'ו. מתקני חצר לבוגרים  '!J28","v":0},null,{"$f":"'ו. מתקני חצר לבוגרים  '!M28","v":0},{"$f":"'ו. מתקני חצר לבוגרים  '!N28","v":0},{"$f":"IF(F81=0,\"\",'ו. מתקני חצר לבוגרים  '!O28)","v":""},{"$f":"'ו. מתקני חצר לבוגרים  '!P28","v":0}]
[{"$f":"'ו. מתקני חצר לבוגרים  '!C29","v":"דחיקת רגלים"},{"$f":"'ו. מתקני חצר לבוגרים  '!I29","v":0},{"$f":"'ו. מתקני חצר לבוגרים  '!J29","v":0},null,{"$f":"'ו. מתקני חצר לבוגרים  '!M29","v":0},{"$f":"'ו. מתקני חצר לבוגרים  '!N29","v":0},{"$f":"IF(F82=0,\"\",'ו. מתקני חצר לבוגרים  '!O29)","v":""},{"$f":"'ו. מתקני חצר לבוגרים  '!P29","v":0}]
[{"$f":"'ו. מתקני חצר לבוגרים  '!C30","v":"חתירה"},{"$f":"'ו. מתקני חצר לבוגרים  '!I30","v":0},{"$f":"'ו. מתקני חצר לבוגרים  '!J30","v":0},null,{"$f":"'ו. מתקני חצר לבוגרים  '!M30","v":0},{"$f":"'ו. מתקני חצר לבוגרים  '!N30","v":0},{"$f":"IF(F83=0,\"\",'ו. מתקני חצר לבוגרים  '!O30)","v":""},{"$f":"'ו. מתקני חצר לבוגרים  '!P30","v":0}]
[{"$f":"'ו. מתקני חצר לבוגרים  '!C31","v":"אופנים עם מושב"},{"$f":"'ו. מתקני חצר לבוגרים  '!I31","v":0},{"$f":"'ו. מתקני חצר לבוגרים  '!J31","v":0},null,{"$f":"'ו. מתקני חצר לבוגרים  '!M31","v":0},{"$f":"'ו. מתקני חצר לבוגרים  '!N31","v":0},{"$f":"IF(F84=0,\"\",'ו. מתקני חצר לבוגרים  '!O31)","v":""},{"$f":"'ו. מתקני חצר לבוגרים  '!P31","v":0}]
[{"$f":"'ו. מתקני חצר לבוגרים  '!C32","v":"דחיקת ידים"},{"$f":"'ו. מתקני חצר לבוגרים  '!I32","v":0},{"$f":"'ו. מתקני חצר לבוגרים  '!J32","v":0},null,{"$f":"'ו. מתקני חצר לבוגרים  '!M32","v":0},{"$f":"'ו. מתקני חצר לבוגרים  '!N32","v":0},{"$f":"IF(F85=0,\"\",'ו. מתקני חצר לבוגרים  '!O32)","v":""},{"$f":"'ו. מתקני חצר לבוגרים  '!P32","v":0}]
[{"$f":"'ו. מתקני חצר לבוגרים  '!C33","v":"נדנדת מושב"},{"$f":"'ו. מתקני חצר לבוגרים  '!I33","v":0},{"$f":"'ו. מתקני חצר לבוגרים  '!J33","v":0},null,{"$f":"'ו. מתקני חצר לבוגרים  '!M33","v":0},{"$f":"'ו. מתקני חצר לבוגרים  '!N33","v":0},{"$f":"IF(F86=0,\"\",'ו. מתקני חצר לבוגרים  '!O33)","v":""},{"$f":"'ו. מתקני חצר לבוגרים  '!P33","v":0}]
[{"$f":"'ו. מתקני חצר לבוגרים  '!C34","v":"שולחן פינג פונג"},{"$f":"'ו. מתקני חצר לבוגרים  '!I34","v":0},{"$f":"'ו. מתקני חצר לבוגרים  '!J34","v":0},null,{"$f":"'ו. מתקני חצר לבוגרים  '!M34","v":0},{"$f":"'ו. מתקני חצר לבוגרים  '!N34","v":0},{"$f":"IF(F87=0,\"\",'ו. מתקני חצר לבוגרים  '!O34)","v":""},{"$f":"'ו. מתקני חצר לבוגרים  '!P34","v":0}]
[{"$f":"'ו. מתקני חצר לבוגרים  '!C35","v":"הוקי"},{"$f":"'ו. מתקני חצר לבוגרים  '!I35","v":0},{"$f":"'ו. מתקני חצר לבוגרים  '!J35","v":0},null,{"$f":"'ו. מתקני חצר לבוגרים  '!M35","v":0},{"$f":"'ו. מתקני חצר לבוגרים  '!N35","v":0},{"$f":"IF(F88=0,\"\",'ו. מתקני חצר לבוגרים  '!O35)","v":""},{"$f":"'ו. מתקני חצר לבוגרים  '!P35","v":0}]
[{"$f":"'ו. מתקני חצר לבוגרים  '!C36","v":"כדורגל שולחן"},{"$f":"'ו. מתקני חצר לבוגרים  '!I36","v":0},{"$f":"'ו. מתקני חצר לבוגרים  '!J36","v":0},null,{"$f":"'ו. מתקני חצר לבוגרים  '!M36","v":0},{"$f":"'ו. מתקני חצר לבוגרים  '!N36","v":0},{"$f":"IF(F89=0,\"\",'ו. מתקני חצר לבוגרים  '!O36)","v":""},{"$f":"'ו. מתקני חצר לבוגרים  '!P36","v":0}]
[{"$f":"'ו. מתקני חצר לבוגרים  '!C37","v":"משטח גומי עלות למ\"ר 1"},{"$f":"'ו. מתקני חצר לבוגרים  '!I37","v":0},{"$f":"'ו. מתקני חצר לבוגרים  '!J37","v":0},null,{"$f":"'ו. מתקני חצר לבוגרים  '!M37","v":0},{"$f":"'ו. מתקני חצר לבוגרים  '!N37","v":0},{"$f":"IF(F90=0,\"\",'ו. מתקני חצר לבוגרים  '!O37)","v":""},{"$f":"'ו. מתקני חצר לבוגרים  '!P37","v":0}]
["סה\"כ מתקני חצר כולל מע\"מ",null,{"$f":"SUM(C63:C90)","v":0},null,{"$f":"A91","v":"סה\"כ מתקני חצר כולל מע\"מ"},null,null,0]
[{"$f":"'ב. תוכן עניינים'!C20","v":"חוגים"},null,null,null,{"$f":"A92","v":"חוגים"}]
[{"$f":"'ז. חוגים'!C8","v":"מחשב נייח כולל מקלדת ועכבר"},{"$f":"'ז. חוגים'!H8","v":0},{"$f":"'ז. חוגים'!I8","v":0},null,{"$f":"'ז. חוגים'!L8","v":0},{"$f":"'ז. חוגים'!M8","v":0},{"$f":"IF(F93=0,\"\",'ז. חוגים'!N8)","v":""},{"$f":"'ז. חוגים'!O8","v":0}]
[{"$f":"'ז. חוגים'!C9","v":"שולחן מחשב"},{"$f":"'ז. חוגים'!H9","v":0},{"$f":"'ז. חוגים'!I9","v":0},null,{"$f":"'ז. חוגים'!L9","v":0},{"$f":"'ז. חוגים'!M9","v":0},{"$f":"IF(F94=0,\"\",'ז. חוגים'!N9)","v":""},{"$f":"'ז. חוגים'!O9","v":0}]
[{"$f":"'ז. חוגים'!C10","v":"כסא"},{"$f":"'ז. חוגים'!H10","v":0},{"$f":"'ז. חוגים'!I10","v":0},null,{"$f":"'ז. חוגים'!L10","v":0},{"$f":"'ז. חוגים'!M10","v":0},{"$f":"IF(F95=0,\"\",'ז. חוגים'!N10)","v":""},{"$f":"'ז. חוגים'!O10","v":0}]
[{"$f":"'ז. חוגים'!C12","v":"קרמיקה כולל תנור וציוד נילווה  (רכישת התנור מותנת בקיום חדר נפרד לתנור 5 מ\"ר- 7 מ\"ר תנור קרמיקה תוצרת חו\"ל דורש תו תקן מת\"י)"},{"$f":"'ז. חוגים'!H12","v":0},{"$f":"'ז. חוגים'!I12","v":0},null,{"$f":"'ז. חוגים'!L12","v":0},{"$f":"'ז. חוגים'!M12","v":0},{"$f":"IF(F96=0,\"\",'ז. חוגים'!N12)","v":""},{"$f":"'ז. חוגים'!O12","v":0}]
[{"$f":"'ז. חוגים'!C13","v":"מוזיקה"},{"$f":"'ז. חוגים'!H13","v":0},{"$f":"'ז. חוגים'!I13","v":0},null,{"$f":"'ז. חוגים'!L13","v":0},{"$f":"'ז. חוגים'!M13","v":0},{"$f":"IF(F97=0,\"\",'ז. חוגים'!N13)","v":""},{"$f":"'ז. חוגים'!O13","v":0}]
[{"$f":"'ז. חוגים'!C14","v":"בישול "},{"$f":"'ז. חוגים'!H14","v":0},{"$f":"'ז. חוגים'!I14","v":0},null,{"$f":"'ז. חוגים'!L14","v":0},{"$f":"'ז. חוגים'!M14","v":0},{"$f":"IF(F98=0,\"\",'ז. חוגים'!N14)","v":""},{"$f":"'ז. חוגים'!O14","v":0}]
[{"$f":"'ז. חוגים'!C15","v":"ציוד לפעילות גופנית קלה"},{"$f":"'ז. חוגים'!H15","v":0},{"$f":"'ז. חוגים'!I15","v":0},null,{"$f":"'ז. חוגים'!L15","v":0},{"$f":"'ז. חוגים'!M15","v":0},{"$f":"IF(F99=0,\"\",'ז. חוגים'!N15)","v":""},{"$f":"'ז. חוגים'!O15","v":0}]
[{"$f":"'ז. חוגים'!C16","v":"חוג עיצוב וייצור מוצרים: מדפסת תלת מימד (נדרש מדריך בעל ידע וניסיון בהפעלת המדפסת)"},{"$f":"'ז. חוגים'!H16","v":0},{"$f":"'ז. חוגים'!I16","v":0},null,{"$f":"'ז. חוגים'!L16","v":0},{"$f":"'ז. חוגים'!M16","v":0},{"$f":"IF(F100=0,\"\",'ז. חוגים'!N16)","v":""},{"$f":"'ז. חוגים'!O16","v":0}]
[{"$f":"'ז. חוגים'!C17","v":"חוגים נוספים (יש לפרט את החוג ואת הציוד המבוקש עבורו )"},{"$f":"'ז. חוגים'!H17","v":0},{"$f":"'ז. חוגים'!I17","v":0},null,{"$f":"'ז. חוגים'!L17","v":0},{"$f":"'ז. חוגים'!M17","v":0},{"$f":"IF(F101=0,\"\",'ז. חוגים'!N17)","v":""},{"$f":"'ז. חוגים'!O17","v":0}]
["סה\"כ חוגים כולל מע\"מ",null,{"$f":"SUM(C93:C101)","v":0},null,{"$f":"A102","v":"סה\"כ חוגים כולל מע\"מ"},null,null,0]
[{"$f":"'ב. תוכן עניינים'!C21","v":"ציוד נוסף"},null,null,null,{"$f":"A103","v":"ציוד נוסף"}]
[{"$f":"'ח. ציוד נוסף '!B8","v":0},{"$f":"'ח. ציוד נוסף '!D8","v":0},{"$f":"'ח. ציוד נוסף '!M8","v":0},null,{"$f":"'ח. ציוד נוסף '!O8","v":0},{"$f":"'ח. ציוד נוסף '!P8","v":0},{"$f":"IF(F104=0,\"\",'ח. ציוד נוסף '!Q8)","v":""},{"$f":"'ח. ציוד נוסף '!R8","v":0}]
[{"$f":"'ח. ציוד נוסף '!B9","v":0},{"$f":"'ח. ציוד נוסף '!D9","v":0},{"$f":"'ח. ציוד נוסף '!M9","v":0},null,{"$f":"'ח. ציוד נוסף '!O9","v":0},{"$f":"'ח. ציוד נוסף '!P9","v":0},{"$f":"IF(F105=0,\"\",'ח. ציוד נוסף '!Q9)","v":""},{"$f":"'ח. ציוד נוסף '!R9","v":0}]
[{"$f":"'ח. ציוד נוסף '!B10","v":0},{"$f":"'ח. ציוד נוסף '!D10","v":0},{"$f":"'ח. ציוד נוסף '!M10","v":0},null,{"$f":"'ח. ציוד נוסף '!O10","v":0},{"$f":"'ח. ציוד נוסף '!P10","v":0},{"$f":"IF(F106=0,\"\",'ח. ציוד נוסף '!Q10)","v":""},{"$f":"'ח. ציוד נוסף '!R10","v":0}]
[{"$f":"'ח. ציוד נוסף '!B11","v":0},{"$f":"'ח. ציוד נוסף '!D11","v":0},{"$f":"'ח. ציוד נוסף '!M11","v":0},null,{"$f":"'ח. ציוד נוסף '!O11","v":0},{"$f":"'ח. ציוד נוסף '!P11","v":0},{"$f":"IF(F107=0,\"\",'ח. ציוד נוסף '!Q11)","v":""},{"$f":"'ח. ציוד נוסף '!R11","v":0}]
[{"$f":"'ח. ציוד נוסף '!B12","v":0},{"$f":"'ח. ציוד נוסף '!D12","v":0},{"$f":"'ח. ציוד נוסף '!M12","v":0},null,{"$f":"'ח. ציוד נוסף '!O12","v":0},{"$f":"'ח. ציוד נוסף '!P12","v":0},{"$f":"IF(F108=0,\"\",'ח. ציוד נוסף '!Q12)","v":""},{"$f":"'ח. ציוד נוסף '!R12","v":0}]
[{"$f":"'ח. ציוד נוסף '!B13","v":0},{"$f":"'ח. ציוד נוסף '!D13","v":0},{"$f":"'ח. ציוד נוסף '!M13","v":0},null,{"$f":"'ח. ציוד נוסף '!O13","v":0},{"$f":"'ח. ציוד נוסף '!P13","v":0},{"$f":"IF(F109=0,\"\",'ח. ציוד נוסף '!Q13)","v":""},{"$f":"'ח. ציוד נוסף '!R13","v":0}]
[{"$f":"'ח. ציוד נוסף '!B14","v":0},{"$f":"'ח. ציוד נוסף '!D14","v":0},{"$f":"'ח. ציוד נוסף '!M14","v":0},null,{"$f":"'ח. ציוד נוסף '!O14","v":0},{"$f":"'ח. ציוד נוסף '!P14","v":0},{"$f":"IF(F110=0,\"\",'ח. ציוד נוסף '!Q14)","v":""},{"$f":"'ח. ציוד נוסף '!R14","v":0}]
[{"$f":"'ח. ציוד נוסף '!B15","v":0},{"$f":"'ח. ציוד נוסף '!D15","v":0},{"$f":"'ח. ציוד נוסף '!M15","v":0},null,{"$f":"'ח. ציוד נוסף '!O15","v":0},{"$f":"'ח. ציוד נוסף '!P15","v":0},{"$f":"IF(F111=0,\"\",'ח. ציוד נוסף '!Q15)","v":""},{"$f":"'ח. ציוד נוסף '!R15","v":0}]
[{"$f":"'ח. ציוד נוסף '!B16","v":0},{"$f":"'ח. ציוד נוסף '!D16","v":0},{"$f":"'ח. ציוד נוסף '!M16","v":0},null,{"$f":"'ח. ציוד נוסף '!O16","v":0},{"$f":"'ח. ציוד נוסף '!P16","v":0},{"$f":"IF(F112=0,\"\",'ח. ציוד נוסף '!Q16)","v":""},{"$f":"'ח. ציוד נוסף '!R16","v":0}]
[{"$f":"'ח. ציוד נוסף '!B17","v":0},{"$f":"'ח. ציוד נוסף '!D17","v":0},{"$f":"'ח. ציוד נוסף '!M17","v":0},null,{"$f":"'ח. ציוד נוסף '!O17","v":0},{"$f":"'ח. ציוד נוסף '!P17","v":0},{"$f":"IF(F113=0,\"\",'ח. ציוד נוסף '!Q17)","v":""},{"$f":"'ח. ציוד נוסף '!R17","v":0}]
[{"$f":"'ח. ציוד נוסף '!B18","v":0},{"$f":"'ח. ציוד נוסף '!D18","v":0},{"$f":"'ח. ציוד נוסף '!M18","v":0},null,{"$f":"'ח. ציוד נוסף '!O18","v":0},{"$f":"'ח. ציוד נוסף '!P18","v":0},{"$f":"IF(F114=0,\"\",'ח. ציוד נוסף '!Q18)","v":""},{"$f":"'ח. ציוד נוסף '!R18","v":0}]
[{"$f":"'ח. ציוד נוסף '!B19","v":0},{"$f":"'ח. ציוד נוסף '!D19","v":0},{"$f":"'ח. ציוד נוסף '!M19","v":0},null,{"$f":"'ח. ציוד נוסף '!O19","v":0},{"$f":"'ח. ציוד נוסף '!P19","v":0},{"$f":"IF(F115=0,\"\",'ח. ציוד נוסף '!Q19)","v":""},{"$f":"'ח. ציוד נוסף '!R19","v":0}]
[{"$f":"'ח. ציוד נוסף '!B20","v":0},{"$f":"'ח. ציוד נוסף '!D20","v":0},{"$f":"'ח. ציוד נוסף '!M20","v":0},null,{"$f":"'ח. ציוד נוסף '!O20","v":0},{"$f":"'ח. ציוד נוסף '!P20","v":0},{"$f":"IF(F116=0,\"\",'ח. ציוד נוסף '!Q20)","v":""},{"$f":"'ח. ציוד נוסף '!R20","v":0}]
[{"$f":"'ח. ציוד נוסף '!B21","v":0},{"$f":"'ח. ציוד נוסף '!D21","v":0},{"$f":"'ח. ציוד נוסף '!M21","v":0},null,{"$f":"'ח. ציוד נוסף '!O21","v":0},{"$f":"'ח. ציוד נוסף '!P21","v":0},{"$f":"IF(F117=0,\"\",'ח. ציוד נוסף '!Q21)","v":""},{"$f":"'ח. ציוד נוסף '!R21","v":0}]
[{"$f":"'ח. ציוד נוסף '!B22","v":0},{"$f":"'ח. ציוד נוסף '!D22","v":0},{"$f":"'ח. ציוד נוסף '!M22","v":0},null,{"$f":"'ח. ציוד נוסף '!O22","v":0},{"$f":"'ח. ציוד נוסף '!P22","v":0},{"$f":"IF(F118=0,\"\",'ח. ציוד נוסף '!Q22)","v":""},{"$f":"'ח. ציוד נוסף '!R22","v":0}]
[{"$f":"'ח. ציוד נוסף '!B23","v":0},{"$f":"'ח. ציוד נוסף '!D23","v":0},{"$f":"'ח. ציוד נוסף '!M23","v":0},null,{"$f":"'ח. ציוד נוסף '!O23","v":0},{"$f":"'ח. ציוד נוסף '!P23","v":0},{"$f":"IF(F119=0,\"\",'ח. ציוד נוסף '!Q23)","v":""},{"$f":"'ח. ציוד נוסף '!R23","v":0}]
[{"$f":"'ח. ציוד נוסף '!B24","v":0},{"$f":"'ח. ציוד נוסף '!D24","v":0},{"$f":"'ח. ציוד נוסף '!M24","v":0},null,{"$f":"'ח. ציוד נוסף '!O24","v":0},{"$f":"'ח. ציוד נוסף '!P24","v":0},{"$f":"IF(F120=0,\"\",'ח. ציוד נוסף '!Q24)","v":""},{"$f":"'ח. ציוד נוסף '!R24","v":0}]
[{"$f":"'ח. ציוד נוסף '!B25","v":0},{"$f":"'ח. ציוד נוסף '!D25","v":0},{"$f":"'ח. ציוד נוסף '!M25","v":0},null,{"$f":"'ח. ציוד נוסף '!O25","v":0},{"$f":"'ח. ציוד נוסף '!P25","v":0},{"$f":"IF(F121=0,\"\",'ח. ציוד נוסף '!Q25)","v":""},{"$f":"'ח. ציוד נוסף '!R25","v":0}]
[{"$f":"'ח. ציוד נוסף '!B26","v":0},{"$f":"'ח. ציוד נוסף '!D26","v":0},{"$f":"'ח. ציוד נוסף '!M26","v":0},null,{"$f":"'ח. ציוד נוסף '!O26","v":0},{"$f":"'ח. ציוד נוסף '!P26","v":0},{"$f":"IF(F122=0,\"\",'ח. ציוד נוסף '!Q26)","v":""},{"$f":"'ח. ציוד נוסף '!R26","v":0}]
[{"$f":"'ח. ציוד נוסף '!B27","v":0},{"$f":"'ח. ציוד נוסף '!D27","v":0},{"$f":"'ח. ציוד נוסף '!M27","v":0},null,{"$f":"'ח. ציוד נוסף '!O27","v":0},{"$f":"'ח. ציוד נוסף '!P27","v":0},{"$f":"IF(F123=0,\"\",'ח. ציוד נוסף '!Q27)","v":""},{"$f":"'ח. ציוד נוסף '!R27","v":0}]
[{"$f":"'ח. ציוד נוסף '!B28","v":0},{"$f":"'ח. ציוד נוסף '!D28","v":0},{"$f":"'ח. ציוד נוסף '!M28","v":0},null,{"$f":"'ח. ציוד נוסף '!O28","v":0},{"$f":"'ח. ציוד נוסף '!P28","v":0},{"$f":"IF(F124=0,\"\",'ח. ציוד נוסף '!Q28)","v":""},{"$f":"'ח. ציוד נוסף '!R28","v":0}]
["סה\"כ ציוד אחר כולל מע\"מ",null,{"$f":"SUM(C104:C124)","v":0},null,{"$f":"A125","v":"סה\"כ ציוד אחר כולל מע\"מ"},null,null,0]
["סה\"כ בקשה כולל מע\"מ",null,{"$f":"C55+C61+C91+C102+C125","v":0},null,{"$f":"A126","v":"סה\"כ בקשה כולל מע\"מ"},null,null,{"$f":"H55+H61+H91+H102+H125","v":0}]